{"text_format":"3","workbook":"xlsx","n_sheets":12,"sheets":["Jan","Fev","Mar","Abr","Mai","Jun","Jul","Ago","Set","Out","Nov","Dez"],"not_rendered":{"images":26,"defined_names":25},"read":"whole","date_system":"1900"}

{"sheet":"Jan","index":0,"n_rows":15,"n_cols":11,"rows_kept":15,"merged":[[2,1,2,5],[14,3,14,7],[15,3,15,7]]}
[{"$nulls":10},"SELECIONAR ANO:"]
[{"$nulls":10},2013]
[null,{"$f":"UPPER(TEXT(DATE(AnoCalendário,1,1),\"mmmm aaaa\"))","v":"JANEIRO 2013"}]
[null,"SEGUNDA-FEIRA","TERÇA-FEIRA","QUARTA-FEIRA","QUINTA-FEIRA","SEXTA-FEIRA","SÁBADO","DOMINGO"]
[null,{"$f":"IF(DAY(JanSun1)=1,\"\",IF(AND(YEAR(JanSun1+1)=AnoCalendário,MONTH(JanSun1+1)=1),JanSun1+1,\"\"))","v":""},{"$f":"IF(DAY(JanSun1)=1,\"\",IF(AND(YEAR(JanSun1+2)=AnoCalendário,MONTH(JanSun1+2)=1),JanSun1+2,\"\"))","v":"2013-01-01"},{"$f":"IF(DAY(JanSun1)=1,\"\",IF(AND(YEAR(JanSun1+3)=AnoCalendário,MONTH(JanSun1+3)=1),JanSun1+3,\"\"))","v":"2013-01-02"},{"$f":"IF(DAY(JanSun1)=1,\"\",IF(AND(YEAR(JanSun1+4)=AnoCalendário,MONTH(JanSun1+4)=1),JanSun1+4,\"\"))","v":"2013-01-03"},{"$f":"IF(DAY(JanSun1)=1,\"\",IF(AND(YEAR(JanSun1+5)=AnoCalendário,MONTH(JanSun1+5)=1),JanSun1+5,\"\"))","v":"2013-01-04"},{"$f":"IF(DAY(JanSun1)=1,\"\",IF(AND(YEAR(JanSun1+6)=AnoCalendário,MONTH(JanSun1+6)=1),JanSun1+6,\"\"))","v":"2013-01-05"},{"$f":"IF(DAY(JanSun1)=1,IF(AND(YEAR(JanSun1)=AnoCalendário,MONTH(JanSun1)=1),JanSun1,\"\"),IF(AND(YEAR(JanSun1+7)=AnoCalendário,MONTH(JanSun1+7)=1),JanSun1+7,\"\"))","v":"2013-01-06"}]
[]
[null,{"$f":"IF(DAY(JanSun1)=1,IF(AND(YEAR(JanSun1+1)=AnoCalendário,MONTH(JanSun1+1)=1),JanSun1+1,\"\"),IF(AND(YEAR(JanSun1+8)=AnoCalendário,MONTH(JanSun1+8)=1),JanSun1+8,\"\"))","v":"2013-01-07"},{"$f":"IF(DAY(JanSun1)=1,IF(AND(YEAR(JanSun1+2)=AnoCalendário,MONTH(JanSun1+2)=1),JanSun1+2,\"\"),IF(AND(YEAR(JanSun1+9)=AnoCalendário,MONTH(JanSun1+9)=1),JanSun1+9,\"\"))","v":"2013-01-08"},{"$f":"IF(DAY(JanSun1)=1,IF(AND(YEAR(JanSun1+3)=AnoCalendário,MONTH(JanSun1+3)=1),JanSun1+3,\"\"),IF(AND(YEAR(JanSun1+10)=AnoCalendário,MONTH(JanSun1+10)=1),JanSun1+10,\"\"))","v":"2013-01-09"},{"$f":"IF(DAY(JanSun1)=1,IF(AND(YEAR(JanSun1+4)=AnoCalendário,MONTH(JanSun1+4)=1),JanSun1+4,\"\"),IF(AND(YEAR(JanSun1+11)=AnoCalendário,MONTH(JanSun1+11)=1),JanSun1+11,\"\"))","v":"2013-01-10"},{"$f":"IF(DAY(JanSun1)=1,IF(AND(YEAR(JanSun1+5)=AnoCalendário,MONTH(JanSun1+5)=1),JanSun1+5,\"\"),IF(AND(YEAR(JanSun1+12)=AnoCalendário,MONTH(JanSun1+12)=1),JanSun1+12,\"\"))","v":"2013-01-11"},{"$f":"IF(DAY(JanSun1)=1,IF(AND(YEAR(JanSun1+6)=AnoCalendário,MONTH(JanSun1+6)=1),JanSun1+6,\"\"),IF(AND(YEAR(JanSun1+13)=AnoCalendário,MONTH(JanSun1+13)=1),JanSun1+13,\"\"))","v":"2013-01-12"},{"$f":"IF(DAY(JanSun1)=1,IF(AND(YEAR(JanSun1+7)=AnoCalendário,MONTH(JanSun1+7)=1),JanSun1+7,\"\"),IF(AND(YEAR(JanSun1+14)=AnoCalendário,MONTH(JanSun1+14)=1),JanSun1+14,\"\"))","v":"2013-01-13"}]
[]
[null,{"$f":"IF(DAY(JanSun1)=1,IF(AND(YEAR(JanSun1+8)=AnoCalendário,MONTH(JanSun1+8)=1),JanSun1+8,\"\"),IF(AND(YEAR(JanSun1+15)=AnoCalendário,MONTH(JanSun1+15)=1),JanSun1+15,\"\"))","v":"2013-01-14"},{"$f":"IF(DAY(JanSun1)=1,IF(AND(YEAR(JanSun1+9)=AnoCalendário,MONTH(JanSun1+9)=1),JanSun1+9,\"\"),IF(AND(YEAR(JanSun1+16)=AnoCalendário,MONTH(JanSun1+16)=1),JanSun1+16,\"\"))","v":"2013-01-15"},{"$f":"IF(DAY(JanSun1)=1,IF(AND(YEAR(JanSun1+10)=AnoCalendário,MONTH(JanSun1+10)=1),JanSun1+10,\"\"),IF(AND(YEAR(JanSun1+17)=AnoCalendário,MONTH(JanSun1+17)=1),JanSun1+17,\"\"))","v":"2013-01-16"},{"$f":"IF(DAY(JanSun1)=1,IF(AND(YEAR(JanSun1+11)=AnoCalendário,MONTH(JanSun1+11)=1),JanSun1+11,\"\"),IF(AND(YEAR(JanSun1+18)=AnoCalendário,MONTH(JanSun1+18)=1),JanSun1+18,\"\"))","v":"2013-01-17"},{"$f":"IF(DAY(JanSun1)=1,IF(AND(YEAR(JanSun1+12)=AnoCalendário,MONTH(JanSun1+12)=1),JanSun1+12,\"\"),IF(AND(YEAR(JanSun1+19)=AnoCalendário,MONTH(JanSun1+19)=1),JanSun1+19,\"\"))","v":"2013-01-18"},{"$f":"IF(DAY(JanSun1)=1,IF(AND(YEAR(JanSun1+13)=AnoCalendário,MONTH(JanSun1+13)=1),JanSun1+13,\"\"),IF(AND(YEAR(JanSun1+20)=AnoCalendário,MONTH(JanSun1+20)=1),JanSun1+20,\"\"))","v":"2013-01-19"},{"$f":"IF(DAY(JanSun1)=1,IF(AND(YEAR(JanSun1+14)=AnoCalendário,MONTH(JanSun1+14)=1),JanSun1+14,\"\"),IF(AND(YEAR(JanSun1+21)=AnoCalendário,MONTH(JanSun1+21)=1),JanSun1+21,\"\"))","v":"2013-01-20"}]
[]
[null,{"$f":"IF(DAY(JanSun1)=1,IF(AND(YEAR(JanSun1+15)=AnoCalendário,MONTH(JanSun1+15)=1),JanSun1+15,\"\"),IF(AND(YEAR(JanSun1+22)=AnoCalendário,MONTH(JanSun1+22)=1),JanSun1+22,\"\"))","v":"2013-01-21"},{"$f":"IF(DAY(JanSun1)=1,IF(AND(YEAR(JanSun1+16)=AnoCalendário,MONTH(JanSun1+16)=1),JanSun1+16,\"\"),IF(AND(YEAR(JanSun1+23)=AnoCalendário,MONTH(JanSun1+23)=1),JanSun1+23,\"\"))","v":"2013-01-22"},{"$f":"IF(DAY(JanSun1)=1,IF(AND(YEAR(JanSun1+17)=AnoCalendário,MONTH(JanSun1+17)=1),JanSun1+17,\"\"),IF(AND(YEAR(JanSun1+24)=AnoCalendário,MONTH(JanSun1+24)=1),JanSun1+24,\"\"))","v":"2013-01-23"},{"$f":"IF(DAY(JanSun1)=1,IF(AND(YEAR(JanSun1+18)=AnoCalendário,MONTH(JanSun1+18)=1),JanSun1+18,\"\"),IF(AND(YEAR(JanSun1+25)=AnoCalendário,MONTH(JanSun1+25)=1),JanSun1+25,\"\"))","v":"2013-01-24"},{"$f":"IF(DAY(JanSun1)=1,IF(AND(YEAR(JanSun1+19)=AnoCalendário,MONTH(JanSun1+19)=1),JanSun1+19,\"\"),IF(AND(YEAR(JanSun1+26)=AnoCalendário,MONTH(JanSun1+26)=1),JanSun1+26,\"\"))","v":"2013-01-25"},{"$f":"IF(DAY(JanSun1)=1,IF(AND(YEAR(JanSun1+20)=AnoCalendário,MONTH(JanSun1+20)=1),JanSun1+20,\"\"),IF(AND(YEAR(JanSun1+27)=AnoCalendário,MONTH(JanSun1+27)=1),JanSun1+27,\"\"))","v":"2013-01-26"},{"$f":"IF(DAY(JanSun1)=1,IF(AND(YEAR(JanSun1+21)=AnoCalendário,MONTH(JanSun1+21)=1),JanSun1+21,\"\"),IF(AND(YEAR(JanSun1+28)=AnoCalendário,MONTH(JanSun1+28)=1),JanSun1+28,\"\"))","v":"2013-01-27"}]
[]
[null,{"$f":"IF(DAY(JanSun1)=1,IF(AND(YEAR(JanSun1+22)=AnoCalendário,MONTH(JanSun1+22)=1),JanSun1+22,\"\"),IF(AND(YEAR(JanSun1+29)=AnoCalendário,MONTH(JanSun1+29)=1),JanSun1+29,\"\"))","v":"2013-01-28"},{"$f":"IF(DAY(JanSun1)=1,IF(AND(YEAR(JanSun1+23)=AnoCalendário,MONTH(JanSun1+23)=1),JanSun1+23,\"\"),IF(AND(YEAR(JanSun1+30)=AnoCalendário,MONTH(JanSun1+30)=1),JanSun1+30,\"\"))","v":"2013-01-29"},{"$f":"IF(DAY(JanSun1)=1,IF(AND(YEAR(JanSun1+24)=AnoCalendário,MONTH(JanSun1+24)=1),JanSun1+24,\"\"),IF(AND(YEAR(JanSun1+31)=AnoCalendário,MONTH(JanSun1+31)=1),JanSun1+31,\"\"))","v":"2013-01-30"},{"$f":"IF(DAY(JanSun1)=1,IF(AND(YEAR(JanSun1+25)=AnoCalendário,MONTH(JanSun1+25)=1),JanSun1+25,\"\"),IF(AND(YEAR(JanSun1+32)=AnoCalendário,MONTH(JanSun1+32)=1),JanSun1+32,\"\"))","v":"2013-01-31"},{"$f":"IF(DAY(JanSun1)=1,IF(AND(YEAR(JanSun1+26)=AnoCalendário,MONTH(JanSun1+26)=1),JanSun1+26,\"\"),IF(AND(YEAR(JanSun1+33)=AnoCalendário,MONTH(JanSun1+33)=1),JanSun1+33,\"\"))","v":""},{"$f":"IF(DAY(JanSun1)=1,IF(AND(YEAR(JanSun1+27)=AnoCalendário,MONTH(JanSun1+27)=1),JanSun1+27,\"\"),IF(AND(YEAR(JanSun1+34)=AnoCalendário,MONTH(JanSun1+34)=1),JanSun1+34,\"\"))","v":""},{"$f":"IF(DAY(JanSun1)=1,IF(AND(YEAR(JanSun1+28)=AnoCalendário,MONTH(JanSun1+28)=1),JanSun1+28,\"\"),IF(AND(YEAR(JanSun1+35)=AnoCalendário,MONTH(JanSun1+35)=1),JanSun1+35,\"\"))","v":""}]
[]
[null,{"$f":"IF(DAY(JanSun1)=1,IF(AND(YEAR(JanSun1+29)=AnoCalendário,MONTH(JanSun1+29)=1),JanSun1+29,\"\"),IF(AND(YEAR(JanSun1+36)=AnoCalendário,MONTH(JanSun1+36)=1),JanSun1+36,\"\"))","v":""},{"$f":"IF(DAY(JanSun1)=1,IF(AND(YEAR(JanSun1+30)=AnoCalendário,MONTH(JanSun1+30)=1),JanSun1+30,\"\"),IF(AND(YEAR(JanSun1+37)=AnoCalendário,MONTH(JanSun1+37)=1),JanSun1+37,\"\"))","v":""},"OBSERVAÇÕES:"]

{"sheet":"Fev","index":1,"n_rows":15,"n_cols":8,"rows_kept":15,"merged":[[2,1,2,5],[14,3,14,7],[15,3,15,7]]}
[]
[]
[null,{"$f":"UPPER(TEXT(DATE(AnoCalendário,2,1),\"mmmm aaaa\"))","v":"FEVEREIRO 2013"}]
[null,"SEGUNDA-FEIRA","TERÇA-FEIRA","QUARTA-FEIRA","QUINTA-FEIRA","SEXTA-FEIRA","SÁBADO","DOMINGO"]
[null,{"$f":"IF(DAY(FevSun1)=1,\"\",IF(AND(YEAR(FevSun1+1)=AnoCalendário,MONTH(FevSun1+1)=2),FevSun1+1,\"\"))","v":""},{"$f":"IF(DAY(FevSun1)=1,\"\",IF(AND(YEAR(FevSun1+2)=AnoCalendário,MONTH(FevSun1+2)=2),FevSun1+2,\"\"))","v":""},{"$f":"IF(DAY(FevSun1)=1,\"\",IF(AND(YEAR(FevSun1+3)=AnoCalendário,MONTH(FevSun1+3)=2),FevSun1+3,\"\"))","v":""},{"$f":"IF(DAY(FevSun1)=1,\"\",IF(AND(YEAR(FevSun1+4)=AnoCalendário,MONTH(FevSun1+4)=2),FevSun1+4,\"\"))","v":""},{"$f":"IF(DAY(FevSun1)=1,\"\",IF(AND(YEAR(FevSun1+5)=AnoCalendário,MONTH(FevSun1+5)=2),FevSun1+5,\"\"))","v":"2013-02-01"},{"$f":"IF(DAY(FevSun1)=1,\"\",IF(AND(YEAR(FevSun1+6)=AnoCalendário,MONTH(FevSun1+6)=2),FevSun1+6,\"\"))","v":"2013-02-02"},{"$f":"IF(DAY(FevSun1)=1,IF(AND(YEAR(FevSun1)=AnoCalendário,MONTH(FevSun1)=2),FevSun1,\"\"),IF(AND(YEAR(FevSun1+7)=AnoCalendário,MONTH(FevSun1+7)=2),FevSun1+7,\"\"))","v":"2013-02-03"}]
[]
[null,{"$f":"IF(DAY(FevSun1)=1,IF(AND(YEAR(FevSun1+1)=AnoCalendário,MONTH(FevSun1+1)=2),FevSun1+1,\"\"),IF(AND(YEAR(FevSun1+8)=AnoCalendário,MONTH(FevSun1+8)=2),FevSun1+8,\"\"))","v":"2013-02-04"},{"$f":"IF(DAY(FevSun1)=1,IF(AND(YEAR(FevSun1+2)=AnoCalendário,MONTH(FevSun1+2)=2),FevSun1+2,\"\"),IF(AND(YEAR(FevSun1+9)=AnoCalendário,MONTH(FevSun1+9)=2),FevSun1+9,\"\"))","v":"2013-02-05"},{"$f":"IF(DAY(FevSun1)=1,IF(AND(YEAR(FevSun1+3)=AnoCalendário,MONTH(FevSun1+3)=2),FevSun1+3,\"\"),IF(AND(YEAR(FevSun1+10)=AnoCalendário,MONTH(FevSun1+10)=2),FevSun1+10,\"\"))","v":"2013-02-06"},{"$f":"IF(DAY(FevSun1)=1,IF(AND(YEAR(FevSun1+4)=AnoCalendário,MONTH(FevSun1+4)=2),FevSun1+4,\"\"),IF(AND(YEAR(FevSun1+11)=AnoCalendário,MONTH(FevSun1+11)=2),FevSun1+11,\"\"))","v":"2013-02-07"},{"$f":"IF(DAY(FevSun1)=1,IF(AND(YEAR(FevSun1+5)=AnoCalendário,MONTH(FevSun1+5)=2),FevSun1+5,\"\"),IF(AND(YEAR(FevSun1+12)=AnoCalendário,MONTH(FevSun1+12)=2),FevSun1+12,\"\"))","v":"2013-02-08"},{"$f":"IF(DAY(FevSun1)=1,IF(AND(YEAR(FevSun1+6)=AnoCalendário,MONTH(FevSun1+6)=2),FevSun1+6,\"\"),IF(AND(YEAR(FevSun1+13)=AnoCalendário,MONTH(FevSun1+13)=2),FevSun1+13,\"\"))","v":"2013-02-09"},{"$f":"IF(DAY(FevSun1)=1,IF(AND(YEAR(FevSun1+7)=AnoCalendário,MONTH(FevSun1+7)=2),FevSun1+7,\"\"),IF(AND(YEAR(FevSun1+14)=AnoCalendário,MONTH(FevSun1+14)=2),FevSun1+14,\"\"))","v":"2013-02-10"}]
[]
[null,{"$f":"IF(DAY(FevSun1)=1,IF(AND(YEAR(FevSun1+8)=AnoCalendário,MONTH(FevSun1+8)=2),FevSun1+8,\"\"),IF(AND(YEAR(FevSun1+15)=AnoCalendário,MONTH(FevSun1+15)=2),FevSun1+15,\"\"))","v":"2013-02-11"},{"$f":"IF(DAY(FevSun1)=1,IF(AND(YEAR(FevSun1+9)=AnoCalendário,MONTH(FevSun1+9)=2),FevSun1+9,\"\"),IF(AND(YEAR(FevSun1+16)=AnoCalendário,MONTH(FevSun1+16)=2),FevSun1+16,\"\"))","v":"2013-02-12"},{"$f":"IF(DAY(FevSun1)=1,IF(AND(YEAR(FevSun1+10)=AnoCalendário,MONTH(FevSun1+10)=2),FevSun1+10,\"\"),IF(AND(YEAR(FevSun1+17)=AnoCalendário,MONTH(FevSun1+17)=2),FevSun1+17,\"\"))","v":"2013-02-13"},{"$f":"IF(DAY(FevSun1)=1,IF(AND(YEAR(FevSun1+11)=AnoCalendário,MONTH(FevSun1+11)=2),FevSun1+11,\"\"),IF(AND(YEAR(FevSun1+18)=AnoCalendário,MONTH(FevSun1+18)=2),FevSun1+18,\"\"))","v":"2013-02-14"},{"$f":"IF(DAY(FevSun1)=1,IF(AND(YEAR(FevSun1+12)=AnoCalendário,MONTH(FevSun1+12)=2),FevSun1+12,\"\"),IF(AND(YEAR(FevSun1+19)=AnoCalendário,MONTH(FevSun1+19)=2),FevSun1+19,\"\"))","v":"2013-02-15"},{"$f":"IF(DAY(FevSun1)=1,IF(AND(YEAR(FevSun1+13)=AnoCalendário,MONTH(FevSun1+13)=2),FevSun1+13,\"\"),IF(AND(YEAR(FevSun1+20)=AnoCalendário,MONTH(FevSun1+20)=2),FevSun1+20,\"\"))","v":"2013-02-16"},{"$f":"IF(DAY(FevSun1)=1,IF(AND(YEAR(FevSun1+14)=AnoCalendário,MONTH(FevSun1+14)=2),FevSun1+14,\"\"),IF(AND(YEAR(FevSun1+21)=AnoCalendário,MONTH(FevSun1+21)=2),FevSun1+21,\"\"))","v":"2013-02-17"}]
[]
[null,{"$f":"IF(DAY(FevSun1)=1,IF(AND(YEAR(FevSun1+15)=AnoCalendário,MONTH(FevSun1+15)=2),FevSun1+15,\"\"),IF(AND(YEAR(FevSun1+22)=AnoCalendário,MONTH(FevSun1+22)=2),FevSun1+22,\"\"))","v":"2013-02-18"},{"$f":"IF(DAY(FevSun1)=1,IF(AND(YEAR(FevSun1+16)=AnoCalendário,MONTH(FevSun1+16)=2),FevSun1+16,\"\"),IF(AND(YEAR(FevSun1+23)=AnoCalendário,MONTH(FevSun1+23)=2),FevSun1+23,\"\"))","v":"2013-02-19"},{"$f":"IF(DAY(FevSun1)=1,IF(AND(YEAR(FevSun1+17)=AnoCalendário,MONTH(FevSun1+17)=2),FevSun1+17,\"\"),IF(AND(YEAR(FevSun1+24)=AnoCalendário,MONTH(FevSun1+24)=2),FevSun1+24,\"\"))","v":"2013-02-20"},{"$f":"IF(DAY(FevSun1)=1,IF(AND(YEAR(FevSun1+18)=AnoCalendário,MONTH(FevSun1+18)=2),FevSun1+18,\"\"),IF(AND(YEAR(FevSun1+25)=AnoCalendário,MONTH(FevSun1+25)=2),FevSun1+25,\"\"))","v":"2013-02-21"},{"$f":"IF(DAY(FevSun1)=1,IF(AND(YEAR(FevSun1+19)=AnoCalendário,MONTH(FevSun1+19)=2),FevSun1+19,\"\"),IF(AND(YEAR(FevSun1+26)=AnoCalendário,MONTH(FevSun1+26)=2),FevSun1+26,\"\"))","v":"2013-02-22"},{"$f":"IF(DAY(FevSun1)=1,IF(AND(YEAR(FevSun1+20)=AnoCalendário,MONTH(FevSun1+20)=2),FevSun1+20,\"\"),IF(AND(YEAR(FevSun1+27)=AnoCalendário,MONTH(FevSun1+27)=2),FevSun1+27,\"\"))","v":"2013-02-23"},{"$f":"IF(DAY(FevSun1)=1,IF(AND(YEAR(FevSun1+21)=AnoCalendário,MONTH(FevSun1+21)=2),FevSun1+21,\"\"),IF(AND(YEAR(FevSun1+28)=AnoCalendário,MONTH(FevSun1+28)=2),FevSun1+28,\"\"))","v":"2013-02-24"}]
[]
[null,{"$f":"IF(DAY(FevSun1)=1,IF(AND(YEAR(FevSun1+22)=AnoCalendário,MONTH(FevSun1+22)=2),FevSun1+22,\"\"),IF(AND(YEAR(FevSun1+29)=AnoCalendário,MONTH(FevSun1+29)=2),FevSun1+29,\"\"))","v":"2013-02-25"},{"$f":"IF(DAY(FevSun1)=1,IF(AND(YEAR(FevSun1+23)=AnoCalendário,MONTH(FevSun1+23)=2),FevSun1+23,\"\"),IF(AND(YEAR(FevSun1+30)=AnoCalendário,MONTH(FevSun1+30)=2),FevSun1+30,\"\"))","v":"2013-02-26"},{"$f":"IF(DAY(FevSun1)=1,IF(AND(YEAR(FevSun1+24)=AnoCalendário,MONTH(FevSun1+24)=2),FevSun1+24,\"\"),IF(AND(YEAR(FevSun1+31)=AnoCalendário,MONTH(FevSun1+31)=2),FevSun1+31,\"\"))","v":"2013-02-27"},{"$f":"IF(DAY(FevSun1)=1,IF(AND(YEAR(FevSun1+25)=AnoCalendário,MONTH(FevSun1+25)=2),FevSun1+25,\"\"),IF(AND(YEAR(FevSun1+32)=AnoCalendário,MONTH(FevSun1+32)=2),FevSun1+32,\"\"))","v":"2013-02-28"},{"$f":"IF(DAY(FevSun1)=1,IF(AND(YEAR(FevSun1+26)=AnoCalendário,MONTH(FevSun1+26)=2),FevSun1+26,\"\"),IF(AND(YEAR(FevSun1+33)=AnoCalendário,MONTH(FevSun1+33)=2),FevSun1+33,\"\"))","v":""},{"$f":"IF(DAY(FevSun1)=1,IF(AND(YEAR(FevSun1+27)=AnoCalendário,MONTH(FevSun1+27)=2),FevSun1+27,\"\"),IF(AND(YEAR(FevSun1+34)=AnoCalendário,MONTH(FevSun1+34)=2),FevSun1+34,\"\"))","v":""},{"$f":"IF(DAY(FevSun1)=1,IF(AND(YEAR(FevSun1+28)=AnoCalendário,MONTH(FevSun1+28)=2),FevSun1+28,\"\"),IF(AND(YEAR(FevSun1+35)=AnoCalendário,MONTH(FevSun1+35)=2),FevSun1+35,\"\"))","v":""}]
[]
[null,{"$f":"IF(DAY(FevSun1)=1,IF(AND(YEAR(FevSun1+29)=AnoCalendário,MONTH(FevSun1+29)=2),FevSun1+29,\"\"),IF(AND(YEAR(FevSun1+36)=AnoCalendário,MONTH(FevSun1+36)=2),FevSun1+36,\"\"))","v":""},{"$f":"IF(DAY(FevSun1)=1,IF(AND(YEAR(FevSun1+30)=AnoCalendário,MONTH(FevSun1+30)=2),FevSun1+30,\"\"),IF(AND(YEAR(FevSun1+37)=AnoCalendário,MONTH(FevSun1+37)=2),FevSun1+37,\"\"))","v":""},"OBSERVAÇÕES:"]

{"sheet":"Mar","index":2,"n_rows":15,"n_cols":8,"rows_kept":15,"merged":[[2,1,2,5],[14,3,14,7],[15,3,15,7]]}
[]
[]
[null,{"$f":"UPPER(TEXT(DATE(AnoCalendário,3,1),\"mmmm aaaa\"))","v":"MARÇO 2013"}]
[null,"SEGUNDA-FEIRA","TERÇA-FEIRA","QUARTA-FEIRA","QUINTA-FEIRA","SEXTA-FEIRA","SÁBADO","DOMINGO"]
[null,{"$f":"IF(DAY(MarSun1)=1,\"\",IF(AND(YEAR(MarSun1+1)=AnoCalendário,MONTH(MarSun1+1)=3),MarSun1+1,\"\"))","v":""},{"$f":"IF(DAY(MarSun1)=1,\"\",IF(AND(YEAR(MarSun1+2)=AnoCalendário,MONTH(MarSun1+2)=3),MarSun1+2,\"\"))","v":""},{"$f":"IF(DAY(MarSun1)=1,\"\",IF(AND(YEAR(MarSun1+3)=AnoCalendário,MONTH(MarSun1+3)=3),MarSun1+3,\"\"))","v":""},{"$f":"IF(DAY(MarSun1)=1,\"\",IF(AND(YEAR(MarSun1+4)=AnoCalendário,MONTH(MarSun1+4)=3),MarSun1+4,\"\"))","v":""},{"$f":"IF(DAY(MarSun1)=1,\"\",IF(AND(YEAR(MarSun1+5)=AnoCalendário,MONTH(MarSun1+5)=3),MarSun1+5,\"\"))","v":"2013-03-01"},{"$f":"IF(DAY(MarSun1)=1,\"\",IF(AND(YEAR(MarSun1+6)=AnoCalendário,MONTH(MarSun1+6)=3),MarSun1+6,\"\"))","v":"2013-03-02"},{"$f":"IF(DAY(MarSun1)=1,IF(AND(YEAR(MarSun1)=AnoCalendário,MONTH(MarSun1)=3),MarSun1,\"\"),IF(AND(YEAR(MarSun1+7)=AnoCalendário,MONTH(MarSun1+7)=3),MarSun1+7,\"\"))","v":"2013-03-03"}]
[]
[null,{"$f":"IF(DAY(MarSun1)=1,IF(AND(YEAR(MarSun1+1)=AnoCalendário,MONTH(MarSun1+1)=3),MarSun1+1,\"\"),IF(AND(YEAR(MarSun1+8)=AnoCalendário,MONTH(MarSun1+8)=3),MarSun1+8,\"\"))","v":"2013-03-04"},{"$f":"IF(DAY(MarSun1)=1,IF(AND(YEAR(MarSun1+2)=AnoCalendário,MONTH(MarSun1+2)=3),MarSun1+2,\"\"),IF(AND(YEAR(MarSun1+9)=AnoCalendário,MONTH(MarSun1+9)=3),MarSun1+9,\"\"))","v":"2013-03-05"},{"$f":"IF(DAY(MarSun1)=1,IF(AND(YEAR(MarSun1+3)=AnoCalendário,MONTH(MarSun1+3)=3),MarSun1+3,\"\"),IF(AND(YEAR(MarSun1+10)=AnoCalendário,MONTH(MarSun1+10)=3),MarSun1+10,\"\"))","v":"2013-03-06"},{"$f":"IF(DAY(MarSun1)=1,IF(AND(YEAR(MarSun1+4)=AnoCalendário,MONTH(MarSun1+4)=3),MarSun1+4,\"\"),IF(AND(YEAR(MarSun1+11)=AnoCalendário,MONTH(MarSun1+11)=3),MarSun1+11,\"\"))","v":"2013-03-07"},{"$f":"IF(DAY(MarSun1)=1,IF(AND(YEAR(MarSun1+5)=AnoCalendário,MONTH(MarSun1+5)=3),MarSun1+5,\"\"),IF(AND(YEAR(MarSun1+12)=AnoCalendário,MONTH(MarSun1+12)=3),MarSun1+12,\"\"))","v":"2013-03-08"},{"$f":"IF(DAY(MarSun1)=1,IF(AND(YEAR(MarSun1+6)=AnoCalendário,MONTH(MarSun1+6)=3),MarSun1+6,\"\"),IF(AND(YEAR(MarSun1+13)=AnoCalendário,MONTH(MarSun1+13)=3),MarSun1+13,\"\"))","v":"2013-03-09"},{"$f":"IF(DAY(MarSun1)=1,IF(AND(YEAR(MarSun1+7)=AnoCalendário,MONTH(MarSun1+7)=3),MarSun1+7,\"\"),IF(AND(YEAR(MarSun1+14)=AnoCalendário,MONTH(MarSun1+14)=3),MarSun1+14,\"\"))","v":"2013-03-10"}]
[]
[null,{"$f":"IF(DAY(MarSun1)=1,IF(AND(YEAR(MarSun1+8)=AnoCalendário,MONTH(MarSun1+8)=3),MarSun1+8,\"\"),IF(AND(YEAR(MarSun1+15)=AnoCalendário,MONTH(MarSun1+15)=3),MarSun1+15,\"\"))","v":"2013-03-11"},{"$f":"IF(DAY(MarSun1)=1,IF(AND(YEAR(MarSun1+9)=AnoCalendário,MONTH(MarSun1+9)=3),MarSun1+9,\"\"),IF(AND(YEAR(MarSun1+16)=AnoCalendário,MONTH(MarSun1+16)=3),MarSun1+16,\"\"))","v":"2013-03-12"},{"$f":"IF(DAY(MarSun1)=1,IF(AND(YEAR(MarSun1+10)=AnoCalendário,MONTH(MarSun1+10)=3),MarSun1+10,\"\"),IF(AND(YEAR(MarSun1+17)=AnoCalendário,MONTH(MarSun1+17)=3),MarSun1+17,\"\"))","v":"2013-03-13"},{"$f":"IF(DAY(MarSun1)=1,IF(AND(YEAR(MarSun1+11)=AnoCalendário,MONTH(MarSun1+11)=3),MarSun1+11,\"\"),IF(AND(YEAR(MarSun1+18)=AnoCalendário,MONTH(MarSun1+18)=3),MarSun1+18,\"\"))","v":"2013-03-14"},{"$f":"IF(DAY(MarSun1)=1,IF(AND(YEAR(MarSun1+12)=AnoCalendário,MONTH(MarSun1+12)=3),MarSun1+12,\"\"),IF(AND(YEAR(MarSun1+19)=AnoCalendário,MONTH(MarSun1+19)=3),MarSun1+19,\"\"))","v":"2013-03-15"},{"$f":"IF(DAY(MarSun1)=1,IF(AND(YEAR(MarSun1+13)=AnoCalendário,MONTH(MarSun1+13)=3),MarSun1+13,\"\"),IF(AND(YEAR(MarSun1+20)=AnoCalendário,MONTH(MarSun1+20)=3),MarSun1+20,\"\"))","v":"2013-03-16"},{"$f":"IF(DAY(MarSun1)=1,IF(AND(YEAR(MarSun1+14)=AnoCalendário,MONTH(MarSun1+14)=3),MarSun1+14,\"\"),IF(AND(YEAR(MarSun1+21)=AnoCalendário,MONTH(MarSun1+21)=3),MarSun1+21,\"\"))","v":"2013-03-17"}]
[]
[null,{"$f":"IF(DAY(MarSun1)=1,IF(AND(YEAR(MarSun1+15)=AnoCalendário,MONTH(MarSun1+15)=3),MarSun1+15,\"\"),IF(AND(YEAR(MarSun1+22)=AnoCalendário,MONTH(MarSun1+22)=3),MarSun1+22,\"\"))","v":"2013-03-18"},{"$f":"IF(DAY(MarSun1)=1,IF(AND(YEAR(MarSun1+16)=AnoCalendário,MONTH(MarSun1+16)=3),MarSun1+16,\"\"),IF(AND(YEAR(MarSun1+23)=AnoCalendário,MONTH(MarSun1+23)=3),MarSun1+23,\"\"))","v":"2013-03-19"},{"$f":"IF(DAY(MarSun1)=1,IF(AND(YEAR(MarSun1+17)=AnoCalendário,MONTH(MarSun1+17)=3),MarSun1+17,\"\"),IF(AND(YEAR(MarSun1+24)=AnoCalendário,MONTH(MarSun1+24)=3),MarSun1+24,\"\"))","v":"2013-03-20"},{"$f":"IF(DAY(MarSun1)=1,IF(AND(YEAR(MarSun1+18)=AnoCalendário,MONTH(MarSun1+18)=3),MarSun1+18,\"\"),IF(AND(YEAR(MarSun1+25)=AnoCalendário,MONTH(MarSun1+25)=3),MarSun1+25,\"\"))","v":"2013-03-21"},{"$f":"IF(DAY(MarSun1)=1,IF(AND(YEAR(MarSun1+19)=AnoCalendário,MONTH(MarSun1+19)=3),MarSun1+19,\"\"),IF(AND(YEAR(MarSun1+26)=AnoCalendário,MONTH(MarSun1+26)=3),MarSun1+26,\"\"))","v":"2013-03-22"},{"$f":"IF(DAY(MarSun1)=1,IF(AND(YEAR(MarSun1+20)=AnoCalendário,MONTH(MarSun1+20)=3),MarSun1+20,\"\"),IF(AND(YEAR(MarSun1+27)=AnoCalendário,MONTH(MarSun1+27)=3),MarSun1+27,\"\"))","v":"2013-03-23"},{"$f":"IF(DAY(MarSun1)=1,IF(AND(YEAR(MarSun1+21)=AnoCalendário,MONTH(MarSun1+21)=3),MarSun1+21,\"\"),IF(AND(YEAR(MarSun1+28)=AnoCalendário,MONTH(MarSun1+28)=3),MarSun1+28,\"\"))","v":"2013-03-24"}]
[]
[null,{"$f":"IF(DAY(MarSun1)=1,IF(AND(YEAR(MarSun1+22)=AnoCalendário,MONTH(MarSun1+22)=3),MarSun1+22,\"\"),IF(AND(YEAR(MarSun1+29)=AnoCalendário,MONTH(MarSun1+29)=3),MarSun1+29,\"\"))","v":"2013-03-25"},{"$f":"IF(DAY(MarSun1)=1,IF(AND(YEAR(MarSun1+23)=AnoCalendário,MONTH(MarSun1+23)=3),MarSun1+23,\"\"),IF(AND(YEAR(MarSun1+30)=AnoCalendário,MONTH(MarSun1+30)=3),MarSun1+30,\"\"))","v":"2013-03-26"},{"$f":"IF(DAY(MarSun1)=1,IF(AND(YEAR(MarSun1+24)=AnoCalendário,MONTH(MarSun1+24)=3),MarSun1+24,\"\"),IF(AND(YEAR(MarSun1+31)=AnoCalendário,MONTH(MarSun1+31)=3),MarSun1+31,\"\"))","v":"2013-03-27"},{"$f":"IF(DAY(MarSun1)=1,IF(AND(YEAR(MarSun1+25)=AnoCalendário,MONTH(MarSun1+25)=3),MarSun1+25,\"\"),IF(AND(YEAR(MarSun1+32)=AnoCalendário,MONTH(MarSun1+32)=3),MarSun1+32,\"\"))","v":"2013-03-28"},{"$f":"IF(DAY(MarSun1)=1,IF(AND(YEAR(MarSun1+26)=AnoCalendário,MONTH(MarSun1+26)=3),MarSun1+26,\"\"),IF(AND(YEAR(MarSun1+33)=AnoCalendário,MONTH(MarSun1+33)=3),MarSun1+33,\"\"))","v":"2013-03-29"},{"$f":"IF(DAY(MarSun1)=1,IF(AND(YEAR(MarSun1+27)=AnoCalendário,MONTH(MarSun1+27)=3),MarSun1+27,\"\"),IF(AND(YEAR(MarSun1+34)=AnoCalendário,MONTH(MarSun1+34)=3),MarSun1+34,\"\"))","v":"2013-03-30"},{"$f":"IF(DAY(MarSun1)=1,IF(AND(YEAR(MarSun1+28)=AnoCalendário,MONTH(MarSun1+28)=3),MarSun1+28,\"\"),IF(AND(YEAR(MarSun1+35)=AnoCalendário,MONTH(MarSun1+35)=3),MarSun1+35,\"\"))","v":"2013-03-31"}]
[]
[null,{"$f":"IF(DAY(MarSun1)=1,IF(AND(YEAR(MarSun1+29)=AnoCalendário,MONTH(MarSun1+29)=3),MarSun1+29,\"\"),IF(AND(YEAR(MarSun1+36)=AnoCalendário,MONTH(MarSun1+36)=3),MarSun1+36,\"\"))","v":""},{"$f":"IF(DAY(MarSun1)=1,IF(AND(YEAR(MarSun1+30)=AnoCalendário,MONTH(MarSun1+30)=3),MarSun1+30,\"\"),IF(AND(YEAR(MarSun1+37)=AnoCalendário,MONTH(MarSun1+37)=3),MarSun1+37,\"\"))","v":""},"OBSERVAÇÕES:"]

{"sheet":"Abr","index":3,"n_rows":15,"n_cols":8,"rows_kept":15,"merged":[[2,1,2,5],[14,3,14,7],[15,3,15,7]]}
[]
[]
[null,{"$f":"UPPER(TEXT(DATE(AnoCalendário,4,1),\"mmmm aaaa\"))","v":"ABRIL 2013"}]
[null,"SEGUNDA-FEIRA","TERÇA-FEIRA","QUARTA-FEIRA","QUINTA-FEIRA","SEXTA-FEIRA","SÁBADO","DOMINGO"]
[null,{"$f":"IF(DAY(AbrSun1)=1,\"\",IF(AND(YEAR(AbrSun1+1)=AnoCalendário,MONTH(AbrSun1+1)=4),AbrSun1+1,\"\"))","v":"2013-04-01"},{"$f":"IF(DAY(AbrSun1)=1,\"\",IF(AND(YEAR(AbrSun1+2)=AnoCalendário,MONTH(AbrSun1+2)=4),AbrSun1+2,\"\"))","v":"2013-04-02"},{"$f":"IF(DAY(AbrSun1)=1,\"\",IF(AND(YEAR(AbrSun1+3)=AnoCalendário,MONTH(AbrSun1+3)=4),AbrSun1+3,\"\"))","v":"2013-04-03"},{"$f":"IF(DAY(AbrSun1)=1,\"\",IF(AND(YEAR(AbrSun1+4)=AnoCalendário,MONTH(AbrSun1+4)=4),AbrSun1+4,\"\"))","v":"2013-04-04"},{"$f":"IF(DAY(AbrSun1)=1,\"\",IF(AND(YEAR(AbrSun1+5)=AnoCalendário,MONTH(AbrSun1+5)=4),AbrSun1+5,\"\"))","v":"2013-04-05"},{"$f":"IF(DAY(AbrSun1)=1,\"\",IF(AND(YEAR(AbrSun1+6)=AnoCalendário,MONTH(AbrSun1+6)=4),AbrSun1+6,\"\"))","v":"2013-04-06"},{"$f":"IF(DAY(AbrSun1)=1,IF(AND(YEAR(AbrSun1)=AnoCalendário,MONTH(AbrSun1)=4),AbrSun1,\"\"),IF(AND(YEAR(AbrSun1+7)=AnoCalendário,MONTH(AbrSun1+7)=4),AbrSun1+7,\"\"))","v":"2013-04-07"}]
[]
[null,{"$f":"IF(DAY(AbrSun1)=1,IF(AND(YEAR(AbrSun1+1)=AnoCalendário,MONTH(AbrSun1+1)=4),AbrSun1+1,\"\"),IF(AND(YEAR(AbrSun1+8)=AnoCalendário,MONTH(AbrSun1+8)=4),AbrSun1+8,\"\"))","v":"2013-04-08"},{"$f":"IF(DAY(AbrSun1)=1,IF(AND(YEAR(AbrSun1+2)=AnoCalendário,MONTH(AbrSun1+2)=4),AbrSun1+2,\"\"),IF(AND(YEAR(AbrSun1+9)=AnoCalendário,MONTH(AbrSun1+9)=4),AbrSun1+9,\"\"))","v":"2013-04-09"},{"$f":"IF(DAY(AbrSun1)=1,IF(AND(YEAR(AbrSun1+3)=AnoCalendário,MONTH(AbrSun1+3)=4),AbrSun1+3,\"\"),IF(AND(YEAR(AbrSun1+10)=AnoCalendário,MONTH(AbrSun1+10)=4),AbrSun1+10,\"\"))","v":"2013-04-10"},{"$f":"IF(DAY(AbrSun1)=1,IF(AND(YEAR(AbrSun1+4)=AnoCalendário,MONTH(AbrSun1+4)=4),AbrSun1+4,\"\"),IF(AND(YEAR(AbrSun1+11)=AnoCalendário,MONTH(AbrSun1+11)=4),AbrSun1+11,\"\"))","v":"2013-04-11"},{"$f":"IF(DAY(AbrSun1)=1,IF(AND(YEAR(AbrSun1+5)=AnoCalendário,MONTH(AbrSun1+5)=4),AbrSun1+5,\"\"),IF(AND(YEAR(AbrSun1+12)=AnoCalendário,MONTH(AbrSun1+12)=4),AbrSun1+12,\"\"))","v":"2013-04-12"},{"$f":"IF(DAY(AbrSun1)=1,IF(AND(YEAR(AbrSun1+6)=AnoCalendário,MONTH(AbrSun1+6)=4),AbrSun1+6,\"\"),IF(AND(YEAR(AbrSun1+13)=AnoCalendário,MONTH(AbrSun1+13)=4),AbrSun1+13,\"\"))","v":"2013-04-13"},{"$f":"IF(DAY(AbrSun1)=1,IF(AND(YEAR(AbrSun1+7)=AnoCalendário,MONTH(AbrSun1+7)=4),AbrSun1+7,\"\"),IF(AND(YEAR(AbrSun1+14)=AnoCalendário,MONTH(AbrSun1+14)=4),AbrSun1+14,\"\"))","v":"2013-04-14"}]
[]
[null,{"$f":"IF(DAY(AbrSun1)=1,IF(AND(YEAR(AbrSun1+8)=AnoCalendário,MONTH(AbrSun1+8)=4),AbrSun1+8,\"\"),IF(AND(YEAR(AbrSun1+15)=AnoCalendário,MONTH(AbrSun1+15)=4),AbrSun1+15,\"\"))","v":"2013-04-15"},{"$f":"IF(DAY(AbrSun1)=1,IF(AND(YEAR(AbrSun1+9)=AnoCalendário,MONTH(AbrSun1+9)=4),AbrSun1+9,\"\"),IF(AND(YEAR(AbrSun1+16)=AnoCalendário,MONTH(AbrSun1+16)=4),AbrSun1+16,\"\"))","v":"2013-04-16"},{"$f":"IF(DAY(AbrSun1)=1,IF(AND(YEAR(AbrSun1+10)=AnoCalendário,MONTH(AbrSun1+10)=4),AbrSun1+10,\"\"),IF(AND(YEAR(AbrSun1+17)=AnoCalendário,MONTH(AbrSun1+17)=4),AbrSun1+17,\"\"))","v":"2013-04-17"},{"$f":"IF(DAY(AbrSun1)=1,IF(AND(YEAR(AbrSun1+11)=AnoCalendário,MONTH(AbrSun1+11)=4),AbrSun1+11,\"\"),IF(AND(YEAR(AbrSun1+18)=AnoCalendário,MONTH(AbrSun1+18)=4),AbrSun1+18,\"\"))","v":"2013-04-18"},{"$f":"IF(DAY(AbrSun1)=1,IF(AND(YEAR(AbrSun1+12)=AnoCalendário,MONTH(AbrSun1+12)=4),AbrSun1+12,\"\"),IF(AND(YEAR(AbrSun1+19)=AnoCalendário,MONTH(AbrSun1+19)=4),AbrSun1+19,\"\"))","v":"2013-04-19"},{"$f":"IF(DAY(AbrSun1)=1,IF(AND(YEAR(AbrSun1+13)=AnoCalendário,MONTH(AbrSun1+13)=4),AbrSun1+13,\"\"),IF(AND(YEAR(AbrSun1+20)=AnoCalendário,MONTH(AbrSun1+20)=4),AbrSun1+20,\"\"))","v":"2013-04-20"},{"$f":"IF(DAY(AbrSun1)=1,IF(AND(YEAR(AbrSun1+14)=AnoCalendário,MONTH(AbrSun1+14)=4),AbrSun1+14,\"\"),IF(AND(YEAR(AbrSun1+21)=AnoCalendário,MONTH(AbrSun1+21)=4),AbrSun1+21,\"\"))","v":"2013-04-21"}]
[]
[null,{"$f":"IF(DAY(AbrSun1)=1,IF(AND(YEAR(AbrSun1+15)=AnoCalendário,MONTH(AbrSun1+15)=4),AbrSun1+15,\"\"),IF(AND(YEAR(AbrSun1+22)=AnoCalendário,MONTH(AbrSun1+22)=4),AbrSun1+22,\"\"))","v":"2013-04-22"},{"$f":"IF(DAY(AbrSun1)=1,IF(AND(YEAR(AbrSun1+16)=AnoCalendário,MONTH(AbrSun1+16)=4),AbrSun1+16,\"\"),IF(AND(YEAR(AbrSun1+23)=AnoCalendário,MONTH(AbrSun1+23)=4),AbrSun1+23,\"\"))","v":"2013-04-23"},{"$f":"IF(DAY(AbrSun1)=1,IF(AND(YEAR(AbrSun1+17)=AnoCalendário,MONTH(AbrSun1+17)=4),AbrSun1+17,\"\"),IF(AND(YEAR(AbrSun1+24)=AnoCalendário,MONTH(AbrSun1+24)=4),AbrSun1+24,\"\"))","v":"2013-04-24"},{"$f":"IF(DAY(AbrSun1)=1,IF(AND(YEAR(AbrSun1+18)=AnoCalendário,MONTH(AbrSun1+18)=4),AbrSun1+18,\"\"),IF(AND(YEAR(AbrSun1+25)=AnoCalendário,MONTH(AbrSun1+25)=4),AbrSun1+25,\"\"))","v":"2013-04-25"},{"$f":"IF(DAY(AbrSun1)=1,IF(AND(YEAR(AbrSun1+19)=AnoCalendário,MONTH(AbrSun1+19)=4),AbrSun1+19,\"\"),IF(AND(YEAR(AbrSun1+26)=AnoCalendário,MONTH(AbrSun1+26)=4),AbrSun1+26,\"\"))","v":"2013-04-26"},{"$f":"IF(DAY(AbrSun1)=1,IF(AND(YEAR(AbrSun1+20)=AnoCalendário,MONTH(AbrSun1+20)=4),AbrSun1+20,\"\"),IF(AND(YEAR(AbrSun1+27)=AnoCalendário,MONTH(AbrSun1+27)=4),AbrSun1+27,\"\"))","v":"2013-04-27"},{"$f":"IF(DAY(AbrSun1)=1,IF(AND(YEAR(AbrSun1+21)=AnoCalendário,MONTH(AbrSun1+21)=4),AbrSun1+21,\"\"),IF(AND(YEAR(AbrSun1+28)=AnoCalendário,MONTH(AbrSun1+28)=4),AbrSun1+28,\"\"))","v":"2013-04-28"}]
[]
[null,{"$f":"IF(DAY(AbrSun1)=1,IF(AND(YEAR(AbrSun1+22)=AnoCalendário,MONTH(AbrSun1+22)=4),AbrSun1+22,\"\"),IF(AND(YEAR(AbrSun1+29)=AnoCalendário,MONTH(AbrSun1+29)=4),AbrSun1+29,\"\"))","v":"2013-04-29"},{"$f":"IF(DAY(AbrSun1)=1,IF(AND(YEAR(AbrSun1+23)=AnoCalendário,MONTH(AbrSun1+23)=4),AbrSun1+23,\"\"),IF(AND(YEAR(AbrSun1+30)=AnoCalendário,MONTH(AbrSun1+30)=4),AbrSun1+30,\"\"))","v":"2013-04-30"},{"$f":"IF(DAY(AbrSun1)=1,IF(AND(YEAR(AbrSun1+24)=AnoCalendário,MONTH(AbrSun1+24)=4),AbrSun1+24,\"\"),IF(AND(YEAR(AbrSun1+31)=AnoCalendário,MONTH(AbrSun1+31)=4),AbrSun1+31,\"\"))","v":""},{"$f":"IF(DAY(AbrSun1)=1,IF(AND(YEAR(AbrSun1+25)=AnoCalendário,MONTH(AbrSun1+25)=4),AbrSun1+25,\"\"),IF(AND(YEAR(AbrSun1+32)=AnoCalendário,MONTH(AbrSun1+32)=4),AbrSun1+32,\"\"))","v":""},{"$f":"IF(DAY(AbrSun1)=1,IF(AND(YEAR(AbrSun1+26)=AnoCalendário,MONTH(AbrSun1+26)=4),AbrSun1+26,\"\"),IF(AND(YEAR(AbrSun1+33)=AnoCalendário,MONTH(AbrSun1+33)=4),AbrSun1+33,\"\"))","v":""},{"$f":"IF(DAY(AbrSun1)=1,IF(AND(YEAR(AbrSun1+27)=AnoCalendário,MONTH(AbrSun1+27)=4),AbrSun1+27,\"\"),IF(AND(YEAR(AbrSun1+34)=AnoCalendário,MONTH(AbrSun1+34)=4),AbrSun1+34,\"\"))","v":""},{"$f":"IF(DAY(AbrSun1)=1,IF(AND(YEAR(AbrSun1+28)=AnoCalendário,MONTH(AbrSun1+28)=4),AbrSun1+28,\"\"),IF(AND(YEAR(AbrSun1+35)=AnoCalendário,MONTH(AbrSun1+35)=4),AbrSun1+35,\"\"))","v":""}]
[]
[null,{"$f":"IF(DAY(AbrSun1)=1,IF(AND(YEAR(AbrSun1+29)=AnoCalendário,MONTH(AbrSun1+29)=4),AbrSun1+29,\"\"),IF(AND(YEAR(AbrSun1+36)=AnoCalendário,MONTH(AbrSun1+36)=4),AbrSun1+36,\"\"))","v":""},{"$f":"IF(DAY(AbrSun1)=1,IF(AND(YEAR(AbrSun1+30)=AnoCalendário,MONTH(AbrSun1+30)=4),AbrSun1+30,\"\"),IF(AND(YEAR(AbrSun1+37)=AnoCalendário,MONTH(AbrSun1+37)=4),AbrSun1+37,\"\"))","v":""},"OBSERVAÇÕES:"]

{"sheet":"Mai","index":4,"n_rows":15,"n_cols":8,"rows_kept":15,"merged":[[2,1,2,5],[14,3,14,7],[15,3,15,7]]}
[]
[]
[null,{"$f":"UPPER(TEXT(DATE(AnoCalendário,5,1),\"mmmm aaaa\"))","v":"MAIO 2013"}]
[null,"SEGUNDA-FEIRA","TERÇA-FEIRA","QUARTA-FEIRA","QUINTA-FEIRA","SEXTA-FEIRA","SÁBADO","DOMINGO"]
[null,{"$f":"IF(DAY(MaiSun1)=1,\"\",IF(AND(YEAR(MaiSun1+1)=AnoCalendário,MONTH(MaiSun1+1)=5),MaiSun1+1,\"\"))","v":""},{"$f":"IF(DAY(MaiSun1)=1,\"\",IF(AND(YEAR(MaiSun1+2)=AnoCalendário,MONTH(MaiSun1+2)=5),MaiSun1+2,\"\"))","v":""},{"$f":"IF(DAY(MaiSun1)=1,\"\",IF(AND(YEAR(MaiSun1+3)=AnoCalendário,MONTH(MaiSun1+3)=5),MaiSun1+3,\"\"))","v":"2013-05-01"},{"$f":"IF(DAY(MaiSun1)=1,\"\",IF(AND(YEAR(MaiSun1+4)=AnoCalendário,MONTH(MaiSun1+4)=5),MaiSun1+4,\"\"))","v":"2013-05-02"},{"$f":"IF(DAY(MaiSun1)=1,\"\",IF(AND(YEAR(MaiSun1+5)=AnoCalendário,MONTH(MaiSun1+5)=5),MaiSun1+5,\"\"))","v":"2013-05-03"},{"$f":"IF(DAY(MaiSun1)=1,\"\",IF(AND(YEAR(MaiSun1+6)=AnoCalendário,MONTH(MaiSun1+6)=5),MaiSun1+6,\"\"))","v":"2013-05-04"},{"$f":"IF(DAY(MaiSun1)=1,IF(AND(YEAR(MaiSun1)=AnoCalendário,MONTH(MaiSun1)=5),MaiSun1,\"\"),IF(AND(YEAR(MaiSun1+7)=AnoCalendário,MONTH(MaiSun1+7)=5),MaiSun1+7,\"\"))","v":"2013-05-05"}]
[]
[null,{"$f":"IF(DAY(MaiSun1)=1,IF(AND(YEAR(MaiSun1+1)=AnoCalendário,MONTH(MaiSun1+1)=5),MaiSun1+1,\"\"),IF(AND(YEAR(MaiSun1+8)=AnoCalendário,MONTH(MaiSun1+8)=5),MaiSun1+8,\"\"))","v":"2013-05-06"},{"$f":"IF(DAY(MaiSun1)=1,IF(AND(YEAR(MaiSun1+2)=AnoCalendário,MONTH(MaiSun1+2)=5),MaiSun1+2,\"\"),IF(AND(YEAR(MaiSun1+9)=AnoCalendário,MONTH(MaiSun1+9)=5),MaiSun1+9,\"\"))","v":"2013-05-07"},{"$f":"IF(DAY(MaiSun1)=1,IF(AND(YEAR(MaiSun1+3)=AnoCalendário,MONTH(MaiSun1+3)=5),MaiSun1+3,\"\"),IF(AND(YEAR(MaiSun1+10)=AnoCalendário,MONTH(MaiSun1+10)=5),MaiSun1+10,\"\"))","v":"2013-05-08"},{"$f":"IF(DAY(MaiSun1)=1,IF(AND(YEAR(MaiSun1+4)=AnoCalendário,MONTH(MaiSun1+4)=5),MaiSun1+4,\"\"),IF(AND(YEAR(MaiSun1+11)=AnoCalendário,MONTH(MaiSun1+11)=5),MaiSun1+11,\"\"))","v":"2013-05-09"},{"$f":"IF(DAY(MaiSun1)=1,IF(AND(YEAR(MaiSun1+5)=AnoCalendário,MONTH(MaiSun1+5)=5),MaiSun1+5,\"\"),IF(AND(YEAR(MaiSun1+12)=AnoCalendário,MONTH(MaiSun1+12)=5),MaiSun1+12,\"\"))","v":"2013-05-10"},{"$f":"IF(DAY(MaiSun1)=1,IF(AND(YEAR(MaiSun1+6)=AnoCalendário,MONTH(MaiSun1+6)=5),MaiSun1+6,\"\"),IF(AND(YEAR(MaiSun1+13)=AnoCalendário,MONTH(MaiSun1+13)=5),MaiSun1+13,\"\"))","v":"2013-05-11"},{"$f":"IF(DAY(MaiSun1)=1,IF(AND(YEAR(MaiSun1+7)=AnoCalendário,MONTH(MaiSun1+7)=5),MaiSun1+7,\"\"),IF(AND(YEAR(MaiSun1+14)=AnoCalendário,MONTH(MaiSun1+14)=5),MaiSun1+14,\"\"))","v":"2013-05-12"}]
[]
[null,{"$f":"IF(DAY(MaiSun1)=1,IF(AND(YEAR(MaiSun1+8)=AnoCalendário,MONTH(MaiSun1+8)=5),MaiSun1+8,\"\"),IF(AND(YEAR(MaiSun1+15)=AnoCalendário,MONTH(MaiSun1+15)=5),MaiSun1+15,\"\"))","v":"2013-05-13"},{"$f":"IF(DAY(MaiSun1)=1,IF(AND(YEAR(MaiSun1+9)=AnoCalendário,MONTH(MaiSun1+9)=5),MaiSun1+9,\"\"),IF(AND(YEAR(MaiSun1+16)=AnoCalendário,MONTH(MaiSun1+16)=5),MaiSun1+16,\"\"))","v":"2013-05-14"},{"$f":"IF(DAY(MaiSun1)=1,IF(AND(YEAR(MaiSun1+10)=AnoCalendário,MONTH(MaiSun1+10)=5),MaiSun1+10,\"\"),IF(AND(YEAR(MaiSun1+17)=AnoCalendário,MONTH(MaiSun1+17)=5),MaiSun1+17,\"\"))","v":"2013-05-15"},{"$f":"IF(DAY(MaiSun1)=1,IF(AND(YEAR(MaiSun1+11)=AnoCalendário,MONTH(MaiSun1+11)=5),MaiSun1+11,\"\"),IF(AND(YEAR(MaiSun1+18)=AnoCalendário,MONTH(MaiSun1+18)=5),MaiSun1+18,\"\"))","v":"2013-05-16"},{"$f":"IF(DAY(MaiSun1)=1,IF(AND(YEAR(MaiSun1+12)=AnoCalendário,MONTH(MaiSun1+12)=5),MaiSun1+12,\"\"),IF(AND(YEAR(MaiSun1+19)=AnoCalendário,MONTH(MaiSun1+19)=5),MaiSun1+19,\"\"))","v":"2013-05-17"},{"$f":"IF(DAY(MaiSun1)=1,IF(AND(YEAR(MaiSun1+13)=AnoCalendário,MONTH(MaiSun1+13)=5),MaiSun1+13,\"\"),IF(AND(YEAR(MaiSun1+20)=AnoCalendário,MONTH(MaiSun1+20)=5),MaiSun1+20,\"\"))","v":"2013-05-18"},{"$f":"IF(DAY(MaiSun1)=1,IF(AND(YEAR(MaiSun1+14)=AnoCalendário,MONTH(MaiSun1+14)=5),MaiSun1+14,\"\"),IF(AND(YEAR(MaiSun1+21)=AnoCalendário,MONTH(MaiSun1+21)=5),MaiSun1+21,\"\"))","v":"2013-05-19"}]
[]
[null,{"$f":"IF(DAY(MaiSun1)=1,IF(AND(YEAR(MaiSun1+15)=AnoCalendário,MONTH(MaiSun1+15)=5),MaiSun1+15,\"\"),IF(AND(YEAR(MaiSun1+22)=AnoCalendário,MONTH(MaiSun1+22)=5),MaiSun1+22,\"\"))","v":"2013-05-20"},{"$f":"IF(DAY(MaiSun1)=1,IF(AND(YEAR(MaiSun1+16)=AnoCalendário,MONTH(MaiSun1+16)=5),MaiSun1+16,\"\"),IF(AND(YEAR(MaiSun1+23)=AnoCalendário,MONTH(MaiSun1+23)=5),MaiSun1+23,\"\"))","v":"2013-05-21"},{"$f":"IF(DAY(MaiSun1)=1,IF(AND(YEAR(MaiSun1+17)=AnoCalendário,MONTH(MaiSun1+17)=5),MaiSun1+17,\"\"),IF(AND(YEAR(MaiSun1+24)=AnoCalendário,MONTH(MaiSun1+24)=5),MaiSun1+24,\"\"))","v":"2013-05-22"},{"$f":"IF(DAY(MaiSun1)=1,IF(AND(YEAR(MaiSun1+18)=AnoCalendário,MONTH(MaiSun1+18)=5),MaiSun1+18,\"\"),IF(AND(YEAR(MaiSun1+25)=AnoCalendário,MONTH(MaiSun1+25)=5),MaiSun1+25,\"\"))","v":"2013-05-23"},{"$f":"IF(DAY(MaiSun1)=1,IF(AND(YEAR(MaiSun1+19)=AnoCalendário,MONTH(MaiSun1+19)=5),MaiSun1+19,\"\"),IF(AND(YEAR(MaiSun1+26)=AnoCalendário,MONTH(MaiSun1+26)=5),MaiSun1+26,\"\"))","v":"2013-05-24"},{"$f":"IF(DAY(MaiSun1)=1,IF(AND(YEAR(MaiSun1+20)=AnoCalendário,MONTH(MaiSun1+20)=5),MaiSun1+20,\"\"),IF(AND(YEAR(MaiSun1+27)=AnoCalendário,MONTH(MaiSun1+27)=5),MaiSun1+27,\"\"))","v":"2013-05-25"},{"$f":"IF(DAY(MaiSun1)=1,IF(AND(YEAR(MaiSun1+21)=AnoCalendário,MONTH(MaiSun1+21)=5),MaiSun1+21,\"\"),IF(AND(YEAR(MaiSun1+28)=AnoCalendário,MONTH(MaiSun1+28)=5),MaiSun1+28,\"\"))","v":"2013-05-26"}]
[]
[null,{"$f":"IF(DAY(MaiSun1)=1,IF(AND(YEAR(MaiSun1+22)=AnoCalendário,MONTH(MaiSun1+22)=5),MaiSun1+22,\"\"),IF(AND(YEAR(MaiSun1+29)=AnoCalendário,MONTH(MaiSun1+29)=5),MaiSun1+29,\"\"))","v":"2013-05-27"},{"$f":"IF(DAY(MaiSun1)=1,IF(AND(YEAR(MaiSun1+23)=AnoCalendário,MONTH(MaiSun1+23)=5),MaiSun1+23,\"\"),IF(AND(YEAR(MaiSun1+30)=AnoCalendário,MONTH(MaiSun1+30)=5),MaiSun1+30,\"\"))","v":"2013-05-28"},{"$f":"IF(DAY(MaiSun1)=1,IF(AND(YEAR(MaiSun1+24)=AnoCalendário,MONTH(MaiSun1+24)=5),MaiSun1+24,\"\"),IF(AND(YEAR(MaiSun1+31)=AnoCalendário,MONTH(MaiSun1+31)=5),MaiSun1+31,\"\"))","v":"2013-05-29"},{"$f":"IF(DAY(MaiSun1)=1,IF(AND(YEAR(MaiSun1+25)=AnoCalendário,MONTH(MaiSun1+25)=5),MaiSun1+25,\"\"),IF(AND(YEAR(MaiSun1+32)=AnoCalendário,MONTH(MaiSun1+32)=5),MaiSun1+32,\"\"))","v":"2013-05-30"},{"$f":"IF(DAY(MaiSun1)=1,IF(AND(YEAR(MaiSun1+26)=AnoCalendário,MONTH(MaiSun1+26)=5),MaiSun1+26,\"\"),IF(AND(YEAR(MaiSun1+33)=AnoCalendário,MONTH(MaiSun1+33)=5),MaiSun1+33,\"\"))","v":"2013-05-31"},{"$f":"IF(DAY(MaiSun1)=1,IF(AND(YEAR(MaiSun1+27)=AnoCalendário,MONTH(MaiSun1+27)=5),MaiSun1+27,\"\"),IF(AND(YEAR(MaiSun1+34)=AnoCalendário,MONTH(MaiSun1+34)=5),MaiSun1+34,\"\"))","v":""},{"$f":"IF(DAY(MaiSun1)=1,IF(AND(YEAR(MaiSun1+28)=AnoCalendário,MONTH(MaiSun1+28)=5),MaiSun1+28,\"\"),IF(AND(YEAR(MaiSun1+35)=AnoCalendário,MONTH(MaiSun1+35)=5),MaiSun1+35,\"\"))","v":""}]
[]
[null,{"$f":"IF(DAY(MaiSun1)=1,IF(AND(YEAR(MaiSun1+29)=AnoCalendário,MONTH(MaiSun1+29)=5),MaiSun1+29,\"\"),IF(AND(YEAR(MaiSun1+36)=AnoCalendário,MONTH(MaiSun1+36)=5),MaiSun1+36,\"\"))","v":""},{"$f":"IF(DAY(MaiSun1)=1,IF(AND(YEAR(MaiSun1+30)=AnoCalendário,MONTH(MaiSun1+30)=5),MaiSun1+30,\"\"),IF(AND(YEAR(MaiSun1+37)=AnoCalendário,MONTH(MaiSun1+37)=5),MaiSun1+37,\"\"))","v":""},"OBSERVAÇÕES:"]

{"sheet":"Jun","index":5,"n_rows":15,"n_cols":8,"rows_kept":15,"merged":[[2,1,2,5],[14,3,14,7],[15,3,15,7]]}
[]
[]
[null,{"$f":"UPPER(TEXT(DATE(AnoCalendário,6,1),\"mmmm aaaa\"))","v":"JUNHO 2013"}]
[null,"SEGUNDA-FEIRA","TERÇA-FEIRA","QUARTA-FEIRA","QUINTA-FEIRA","SEXTA-FEIRA","SÁBADO","DOMINGO"]
[null,{"$f":"IF(DAY(JunSun1)=1,\"\",IF(AND(YEAR(JunSun1+1)=AnoCalendário,MONTH(JunSun1+1)=6),JunSun1+1,\"\"))","v":""},{"$f":"IF(DAY(JunSun1)=1,\"\",IF(AND(YEAR(JunSun1+2)=AnoCalendário,MONTH(JunSun1+2)=6),JunSun1+2,\"\"))","v":""},{"$f":"IF(DAY(JunSun1)=1,\"\",IF(AND(YEAR(JunSun1+3)=AnoCalendário,MONTH(JunSun1+3)=6),JunSun1+3,\"\"))","v":""},{"$f":"IF(DAY(JunSun1)=1,\"\",IF(AND(YEAR(JunSun1+4)=AnoCalendário,MONTH(JunSun1+4)=6),JunSun1+4,\"\"))","v":""},{"$f":"IF(DAY(JunSun1)=1,\"\",IF(AND(YEAR(JunSun1+5)=AnoCalendário,MONTH(JunSun1+5)=6),JunSun1+5,\"\"))","v":""},{"$f":"IF(DAY(JunSun1)=1,\"\",IF(AND(YEAR(JunSun1+6)=AnoCalendário,MONTH(JunSun1+6)=6),JunSun1+6,\"\"))","v":"2013-06-01"},{"$f":"IF(DAY(JunSun1)=1,IF(AND(YEAR(JunSun1)=AnoCalendário,MONTH(JunSun1)=6),JunSun1,\"\"),IF(AND(YEAR(JunSun1+7)=AnoCalendário,MONTH(JunSun1+7)=6),JunSun1+7,\"\"))","v":"2013-06-02"}]
[]
[null,{"$f":"IF(DAY(JunSun1)=1,IF(AND(YEAR(JunSun1+1)=AnoCalendário,MONTH(JunSun1+1)=6),JunSun1+1,\"\"),IF(AND(YEAR(JunSun1+8)=AnoCalendário,MONTH(JunSun1+8)=6),JunSun1+8,\"\"))","v":"2013-06-03"},{"$f":"IF(DAY(JunSun1)=1,IF(AND(YEAR(JunSun1+2)=AnoCalendário,MONTH(JunSun1+2)=6),JunSun1+2,\"\"),IF(AND(YEAR(JunSun1+9)=AnoCalendário,MONTH(JunSun1+9)=6),JunSun1+9,\"\"))","v":"2013-06-04"},{"$f":"IF(DAY(JunSun1)=1,IF(AND(YEAR(JunSun1+3)=AnoCalendário,MONTH(JunSun1+3)=6),JunSun1+3,\"\"),IF(AND(YEAR(JunSun1+10)=AnoCalendário,MONTH(JunSun1+10)=6),JunSun1+10,\"\"))","v":"2013-06-05"},{"$f":"IF(DAY(JunSun1)=1,IF(AND(YEAR(JunSun1+4)=AnoCalendário,MONTH(JunSun1+4)=6),JunSun1+4,\"\"),IF(AND(YEAR(JunSun1+11)=AnoCalendário,MONTH(JunSun1+11)=6),JunSun1+11,\"\"))","v":"2013-06-06"},{"$f":"IF(DAY(JunSun1)=1,IF(AND(YEAR(JunSun1+5)=AnoCalendário,MONTH(JunSun1+5)=6),JunSun1+5,\"\"),IF(AND(YEAR(JunSun1+12)=AnoCalendário,MONTH(JunSun1+12)=6),JunSun1+12,\"\"))","v":"2013-06-07"},{"$f":"IF(DAY(JunSun1)=1,IF(AND(YEAR(JunSun1+6)=AnoCalendário,MONTH(JunSun1+6)=6),JunSun1+6,\"\"),IF(AND(YEAR(JunSun1+13)=AnoCalendário,MONTH(JunSun1+13)=6),JunSun1+13,\"\"))","v":"2013-06-08"},{"$f":"IF(DAY(JunSun1)=1,IF(AND(YEAR(JunSun1+7)=AnoCalendário,MONTH(JunSun1+7)=6),JunSun1+7,\"\"),IF(AND(YEAR(JunSun1+14)=AnoCalendário,MONTH(JunSun1+14)=6),JunSun1+14,\"\"))","v":"2013-06-09"}]
[]
[null,{"$f":"IF(DAY(JunSun1)=1,IF(AND(YEAR(JunSun1+8)=AnoCalendário,MONTH(JunSun1+8)=6),JunSun1+8,\"\"),IF(AND(YEAR(JunSun1+15)=AnoCalendário,MONTH(JunSun1+15)=6),JunSun1+15,\"\"))","v":"2013-06-10"},{"$f":"IF(DAY(JunSun1)=1,IF(AND(YEAR(JunSun1+9)=AnoCalendário,MONTH(JunSun1+9)=6),JunSun1+9,\"\"),IF(AND(YEAR(JunSun1+16)=AnoCalendário,MONTH(JunSun1+16)=6),JunSun1+16,\"\"))","v":"2013-06-11"},{"$f":"IF(DAY(JunSun1)=1,IF(AND(YEAR(JunSun1+10)=AnoCalendário,MONTH(JunSun1+10)=6),JunSun1+10,\"\"),IF(AND(YEAR(JunSun1+17)=AnoCalendário,MONTH(JunSun1+17)=6),JunSun1+17,\"\"))","v":"2013-06-12"},{"$f":"IF(DAY(JunSun1)=1,IF(AND(YEAR(JunSun1+11)=AnoCalendário,MONTH(JunSun1+11)=6),JunSun1+11,\"\"),IF(AND(YEAR(JunSun1+18)=AnoCalendário,MONTH(JunSun1+18)=6),JunSun1+18,\"\"))","v":"2013-06-13"},{"$f":"IF(DAY(JunSun1)=1,IF(AND(YEAR(JunSun1+12)=AnoCalendário,MONTH(JunSun1+12)=6),JunSun1+12,\"\"),IF(AND(YEAR(JunSun1+19)=AnoCalendário,MONTH(JunSun1+19)=6),JunSun1+19,\"\"))","v":"2013-06-14"},{"$f":"IF(DAY(JunSun1)=1,IF(AND(YEAR(JunSun1+13)=AnoCalendário,MONTH(JunSun1+13)=6),JunSun1+13,\"\"),IF(AND(YEAR(JunSun1+20)=AnoCalendário,MONTH(JunSun1+20)=6),JunSun1+20,\"\"))","v":"2013-06-15"},{"$f":"IF(DAY(JunSun1)=1,IF(AND(YEAR(JunSun1+14)=AnoCalendário,MONTH(JunSun1+14)=6),JunSun1+14,\"\"),IF(AND(YEAR(JunSun1+21)=AnoCalendário,MONTH(JunSun1+21)=6),JunSun1+21,\"\"))","v":"2013-06-16"}]
[]
[null,{"$f":"IF(DAY(JunSun1)=1,IF(AND(YEAR(JunSun1+15)=AnoCalendário,MONTH(JunSun1+15)=6),JunSun1+15,\"\"),IF(AND(YEAR(JunSun1+22)=AnoCalendário,MONTH(JunSun1+22)=6),JunSun1+22,\"\"))","v":"2013-06-17"},{"$f":"IF(DAY(JunSun1)=1,IF(AND(YEAR(JunSun1+16)=AnoCalendário,MONTH(JunSun1+16)=6),JunSun1+16,\"\"),IF(AND(YEAR(JunSun1+23)=AnoCalendário,MONTH(JunSun1+23)=6),JunSun1+23,\"\"))","v":"2013-06-18"},{"$f":"IF(DAY(JunSun1)=1,IF(AND(YEAR(JunSun1+17)=AnoCalendário,MONTH(JunSun1+17)=6),JunSun1+17,\"\"),IF(AND(YEAR(JunSun1+24)=AnoCalendário,MONTH(JunSun1+24)=6),JunSun1+24,\"\"))","v":"2013-06-19"},{"$f":"IF(DAY(JunSun1)=1,IF(AND(YEAR(JunSun1+18)=AnoCalendário,MONTH(JunSun1+18)=6),JunSun1+18,\"\"),IF(AND(YEAR(JunSun1+25)=AnoCalendário,MONTH(JunSun1+25)=6),JunSun1+25,\"\"))","v":"2013-06-20"},{"$f":"IF(DAY(JunSun1)=1,IF(AND(YEAR(JunSun1+19)=AnoCalendário,MONTH(JunSun1+19)=6),JunSun1+19,\"\"),IF(AND(YEAR(JunSun1+26)=AnoCalendário,MONTH(JunSun1+26)=6),JunSun1+26,\"\"))","v":"2013-06-21"},{"$f":"IF(DAY(JunSun1)=1,IF(AND(YEAR(JunSun1+20)=AnoCalendário,MONTH(JunSun1+20)=6),JunSun1+20,\"\"),IF(AND(YEAR(JunSun1+27)=AnoCalendário,MONTH(JunSun1+27)=6),JunSun1+27,\"\"))","v":"2013-06-22"},{"$f":"IF(DAY(JunSun1)=1,IF(AND(YEAR(JunSun1+21)=AnoCalendário,MONTH(JunSun1+21)=6),JunSun1+21,\"\"),IF(AND(YEAR(JunSun1+28)=AnoCalendário,MONTH(JunSun1+28)=6),JunSun1+28,\"\"))","v":"2013-06-23"}]
[]
[null,{"$f":"IF(DAY(JunSun1)=1,IF(AND(YEAR(JunSun1+22)=AnoCalendário,MONTH(JunSun1+22)=6),JunSun1+22,\"\"),IF(AND(YEAR(JunSun1+29)=AnoCalendário,MONTH(JunSun1+29)=6),JunSun1+29,\"\"))","v":"2013-06-24"},{"$f":"IF(DAY(JunSun1)=1,IF(AND(YEAR(JunSun1+23)=AnoCalendário,MONTH(JunSun1+23)=6),JunSun1+23,\"\"),IF(AND(YEAR(JunSun1+30)=AnoCalendário,MONTH(JunSun1+30)=6),JunSun1+30,\"\"))","v":"2013-06-25"},{"$f":"IF(DAY(JunSun1)=1,IF(AND(YEAR(JunSun1+24)=AnoCalendário,MONTH(JunSun1+24)=6),JunSun1+24,\"\"),IF(AND(YEAR(JunSun1+31)=AnoCalendário,MONTH(JunSun1+31)=6),JunSun1+31,\"\"))","v":"2013-06-26"},{"$f":"IF(DAY(JunSun1)=1,IF(AND(YEAR(JunSun1+25)=AnoCalendário,MONTH(JunSun1+25)=6),JunSun1+25,\"\"),IF(AND(YEAR(JunSun1+32)=AnoCalendário,MONTH(JunSun1+32)=6),JunSun1+32,\"\"))","v":"2013-06-27"},{"$f":"IF(DAY(JunSun1)=1,IF(AND(YEAR(JunSun1+26)=AnoCalendário,MONTH(JunSun1+26)=6),JunSun1+26,\"\"),IF(AND(YEAR(JunSun1+33)=AnoCalendário,MONTH(JunSun1+33)=6),JunSun1+33,\"\"))","v":"2013-06-28"},{"$f":"IF(DAY(JunSun1)=1,IF(AND(YEAR(JunSun1+27)=AnoCalendário,MONTH(JunSun1+27)=6),JunSun1+27,\"\"),IF(AND(YEAR(JunSun1+34)=AnoCalendário,MONTH(JunSun1+34)=6),JunSun1+34,\"\"))","v":"2013-06-29"},{"$f":"IF(DAY(JunSun1)=1,IF(AND(YEAR(JunSun1+28)=AnoCalendário,MONTH(JunSun1+28)=6),JunSun1+28,\"\"),IF(AND(YEAR(JunSun1+35)=AnoCalendário,MONTH(JunSun1+35)=6),JunSun1+35,\"\"))","v":"2013-06-30"}]
[]
[null,{"$f":"IF(DAY(JunSun1)=1,IF(AND(YEAR(JunSun1+29)=AnoCalendário,MONTH(JunSun1+29)=6),JunSun1+29,\"\"),IF(AND(YEAR(JunSun1+36)=AnoCalendário,MONTH(JunSun1+36)=6),JunSun1+36,\"\"))","v":""},{"$f":"IF(DAY(JunSun1)=1,IF(AND(YEAR(JunSun1+30)=AnoCalendário,MONTH(JunSun1+30)=6),JunSun1+30,\"\"),IF(AND(YEAR(JunSun1+37)=AnoCalendário,MONTH(JunSun1+37)=6),JunSun1+37,\"\"))","v":""},"OBSERVAÇÕES:"]

{"sheet":"Jul","index":6,"n_rows":15,"n_cols":8,"rows_kept":15,"merged":[[2,1,2,5],[14,3,14,7],[15,3,15,7]]}
[]
[]
[null,{"$f":"UPPER(TEXT(DATE(AnoCalendário,7,1),\"mmmm aaaa\"))","v":"JULHO 2013"}]
[null,"SEGUNDA-FEIRA","TERÇA-FEIRA","QUARTA-FEIRA","QUINTA-FEIRA","SEXTA-FEIRA","SÁBADO","DOMINGO"]
[null,{"$f":"IF(DAY(JulSun1)=1,\"\",IF(AND(YEAR(JulSun1+1)=AnoCalendário,MONTH(JulSun1+1)=7),JulSun1+1,\"\"))","v":"2013-07-01"},{"$f":"IF(DAY(JulSun1)=1,\"\",IF(AND(YEAR(JulSun1+2)=AnoCalendário,MONTH(JulSun1+2)=7),JulSun1+2,\"\"))","v":"2013-07-02"},{"$f":"IF(DAY(JulSun1)=1,\"\",IF(AND(YEAR(JulSun1+3)=AnoCalendário,MONTH(JulSun1+3)=7),JulSun1+3,\"\"))","v":"2013-07-03"},{"$f":"IF(DAY(JulSun1)=1,\"\",IF(AND(YEAR(JulSun1+4)=AnoCalendário,MONTH(JulSun1+4)=7),JulSun1+4,\"\"))","v":"2013-07-04"},{"$f":"IF(DAY(JulSun1)=1,\"\",IF(AND(YEAR(JulSun1+5)=AnoCalendário,MONTH(JulSun1+5)=7),JulSun1+5,\"\"))","v":"2013-07-05"},{"$f":"IF(DAY(JulSun1)=1,\"\",IF(AND(YEAR(JulSun1+6)=AnoCalendário,MONTH(JulSun1+6)=7),JulSun1+6,\"\"))","v":"2013-07-06"},{"$f":"IF(DAY(JulSun1)=1,IF(AND(YEAR(JulSun1)=AnoCalendário,MONTH(JulSun1)=7),JulSun1,\"\"),IF(AND(YEAR(JulSun1+7)=AnoCalendário,MONTH(JulSun1+7)=7),JulSun1+7,\"\"))","v":"2013-07-07"}]
[]
[null,{"$f":"IF(DAY(JulSun1)=1,IF(AND(YEAR(JulSun1+1)=AnoCalendário,MONTH(JulSun1+1)=7),JulSun1+1,\"\"),IF(AND(YEAR(JulSun1+8)=AnoCalendário,MONTH(JulSun1+8)=7),JulSun1+8,\"\"))","v":"2013-07-08"},{"$f":"IF(DAY(JulSun1)=1,IF(AND(YEAR(JulSun1+2)=AnoCalendário,MONTH(JulSun1+2)=7),JulSun1+2,\"\"),IF(AND(YEAR(JulSun1+9)=AnoCalendário,MONTH(JulSun1+9)=7),JulSun1+9,\"\"))","v":"2013-07-09"},{"$f":"IF(DAY(JulSun1)=1,IF(AND(YEAR(JulSun1+3)=AnoCalendário,MONTH(JulSun1+3)=7),JulSun1+3,\"\"),IF(AND(YEAR(JulSun1+10)=AnoCalendário,MONTH(JulSun1+10)=7),JulSun1+10,\"\"))","v":"2013-07-10"},{"$f":"IF(DAY(JulSun1)=1,IF(AND(YEAR(JulSun1+4)=AnoCalendário,MONTH(JulSun1+4)=7),JulSun1+4,\"\"),IF(AND(YEAR(JulSun1+11)=AnoCalendário,MONTH(JulSun1+11)=7),JulSun1+11,\"\"))","v":"2013-07-11"},{"$f":"IF(DAY(JulSun1)=1,IF(AND(YEAR(JulSun1+5)=AnoCalendário,MONTH(JulSun1+5)=7),JulSun1+5,\"\"),IF(AND(YEAR(JulSun1+12)=AnoCalendário,MONTH(JulSun1+12)=7),JulSun1+12,\"\"))","v":"2013-07-12"},{"$f":"IF(DAY(JulSun1)=1,IF(AND(YEAR(JulSun1+6)=AnoCalendário,MONTH(JulSun1+6)=7),JulSun1+6,\"\"),IF(AND(YEAR(JulSun1+13)=AnoCalendário,MONTH(JulSun1+13)=7),JulSun1+13,\"\"))","v":"2013-07-13"},{"$f":"IF(DAY(JulSun1)=1,IF(AND(YEAR(JulSun1+7)=AnoCalendário,MONTH(JulSun1+7)=7),JulSun1+7,\"\"),IF(AND(YEAR(JulSun1+14)=AnoCalendário,MONTH(JulSun1+14)=7),JulSun1+14,\"\"))","v":"2013-07-14"}]
[]
[null,{"$f":"IF(DAY(JulSun1)=1,IF(AND(YEAR(JulSun1+8)=AnoCalendário,MONTH(JulSun1+8)=7),JulSun1+8,\"\"),IF(AND(YEAR(JulSun1+15)=AnoCalendário,MONTH(JulSun1+15)=7),JulSun1+15,\"\"))","v":"2013-07-15"},{"$f":"IF(DAY(JulSun1)=1,IF(AND(YEAR(JulSun1+9)=AnoCalendário,MONTH(JulSun1+9)=7),JulSun1+9,\"\"),IF(AND(YEAR(JulSun1+16)=AnoCalendário,MONTH(JulSun1+16)=7),JulSun1+16,\"\"))","v":"2013-07-16"},{"$f":"IF(DAY(JulSun1)=1,IF(AND(YEAR(JulSun1+10)=AnoCalendário,MONTH(JulSun1+10)=7),JulSun1+10,\"\"),IF(AND(YEAR(JulSun1+17)=AnoCalendário,MONTH(JulSun1+17)=7),JulSun1+17,\"\"))","v":"2013-07-17"},{"$f":"IF(DAY(JulSun1)=1,IF(AND(YEAR(JulSun1+11)=AnoCalendário,MONTH(JulSun1+11)=7),JulSun1+11,\"\"),IF(AND(YEAR(JulSun1+18)=AnoCalendário,MONTH(JulSun1+18)=7),JulSun1+18,\"\"))","v":"2013-07-18"},{"$f":"IF(DAY(JulSun1)=1,IF(AND(YEAR(JulSun1+12)=AnoCalendário,MONTH(JulSun1+12)=7),JulSun1+12,\"\"),IF(AND(YEAR(JulSun1+19)=AnoCalendário,MONTH(JulSun1+19)=7),JulSun1+19,\"\"))","v":"2013-07-19"},{"$f":"IF(DAY(JulSun1)=1,IF(AND(YEAR(JulSun1+13)=AnoCalendário,MONTH(JulSun1+13)=7),JulSun1+13,\"\"),IF(AND(YEAR(JulSun1+20)=AnoCalendário,MONTH(JulSun1+20)=7),JulSun1+20,\"\"))","v":"2013-07-20"},{"$f":"IF(DAY(JulSun1)=1,IF(AND(YEAR(JulSun1+14)=AnoCalendário,MONTH(JulSun1+14)=7),JulSun1+14,\"\"),IF(AND(YEAR(JulSun1+21)=AnoCalendário,MONTH(JulSun1+21)=7),JulSun1+21,\"\"))","v":"2013-07-21"}]
[]
[null,{"$f":"IF(DAY(JulSun1)=1,IF(AND(YEAR(JulSun1+15)=AnoCalendário,MONTH(JulSun1+15)=7),JulSun1+15,\"\"),IF(AND(YEAR(JulSun1+22)=AnoCalendário,MONTH(JulSun1+22)=7),JulSun1+22,\"\"))","v":"2013-07-22"},{"$f":"IF(DAY(JulSun1)=1,IF(AND(YEAR(JulSun1+16)=AnoCalendário,MONTH(JulSun1+16)=7),JulSun1+16,\"\"),IF(AND(YEAR(JulSun1+23)=AnoCalendário,MONTH(JulSun1+23)=7),JulSun1+23,\"\"))","v":"2013-07-23"},{"$f":"IF(DAY(JulSun1)=1,IF(AND(YEAR(JulSun1+17)=AnoCalendário,MONTH(JulSun1+17)=7),JulSun1+17,\"\"),IF(AND(YEAR(JulSun1+24)=AnoCalendário,MONTH(JulSun1+24)=7),JulSun1+24,\"\"))","v":"2013-07-24"},{"$f":"IF(DAY(JulSun1)=1,IF(AND(YEAR(JulSun1+18)=AnoCalendário,MONTH(JulSun1+18)=7),JulSun1+18,\"\"),IF(AND(YEAR(JulSun1+25)=AnoCalendário,MONTH(JulSun1+25)=7),JulSun1+25,\"\"))","v":"2013-07-25"},{"$f":"IF(DAY(JulSun1)=1,IF(AND(YEAR(JulSun1+19)=AnoCalendário,MONTH(JulSun1+19)=7),JulSun1+19,\"\"),IF(AND(YEAR(JulSun1+26)=AnoCalendário,MONTH(JulSun1+26)=7),JulSun1+26,\"\"))","v":"2013-07-26"},{"$f":"IF(DAY(JulSun1)=1,IF(AND(YEAR(JulSun1+20)=AnoCalendário,MONTH(JulSun1+20)=7),JulSun1+20,\"\"),IF(AND(YEAR(JulSun1+27)=AnoCalendário,MONTH(JulSun1+27)=7),JulSun1+27,\"\"))","v":"2013-07-27"},{"$f":"IF(DAY(JulSun1)=1,IF(AND(YEAR(JulSun1+21)=AnoCalendário,MONTH(JulSun1+21)=7),JulSun1+21,\"\"),IF(AND(YEAR(JulSun1+28)=AnoCalendário,MONTH(JulSun1+28)=7),JulSun1+28,\"\"))","v":"2013-07-28"}]
[]
[null,{"$f":"IF(DAY(JulSun1)=1,IF(AND(YEAR(JulSun1+22)=AnoCalendário,MONTH(JulSun1+22)=7),JulSun1+22,\"\"),IF(AND(YEAR(JulSun1+29)=AnoCalendário,MONTH(JulSun1+29)=7),JulSun1+29,\"\"))","v":"2013-07-29"},{"$f":"IF(DAY(JulSun1)=1,IF(AND(YEAR(JulSun1+23)=AnoCalendário,MONTH(JulSun1+23)=7),JulSun1+23,\"\"),IF(AND(YEAR(JulSun1+30)=AnoCalendário,MONTH(JulSun1+30)=7),JulSun1+30,\"\"))","v":"2013-07-30"},{"$f":"IF(DAY(JulSun1)=1,IF(AND(YEAR(JulSun1+24)=AnoCalendário,MONTH(JulSun1+24)=7),JulSun1+24,\"\"),IF(AND(YEAR(JulSun1+31)=AnoCalendário,MONTH(JulSun1+31)=7),JulSun1+31,\"\"))","v":"2013-07-31"},{"$f":"IF(DAY(JulSun1)=1,IF(AND(YEAR(JulSun1+25)=AnoCalendário,MONTH(JulSun1+25)=7),JulSun1+25,\"\"),IF(AND(YEAR(JulSun1+32)=AnoCalendário,MONTH(JulSun1+32)=7),JulSun1+32,\"\"))","v":""},{"$f":"IF(DAY(JulSun1)=1,IF(AND(YEAR(JulSun1+26)=AnoCalendário,MONTH(JulSun1+26)=7),JulSun1+26,\"\"),IF(AND(YEAR(JulSun1+33)=AnoCalendário,MONTH(JulSun1+33)=7),JulSun1+33,\"\"))","v":""},{"$f":"IF(DAY(JulSun1)=1,IF(AND(YEAR(JulSun1+27)=AnoCalendário,MONTH(JulSun1+27)=7),JulSun1+27,\"\"),IF(AND(YEAR(JulSun1+34)=AnoCalendário,MONTH(JulSun1+34)=7),JulSun1+34,\"\"))","v":""},{"$f":"IF(DAY(JulSun1)=1,IF(AND(YEAR(JulSun1+28)=AnoCalendário,MONTH(JulSun1+28)=7),JulSun1+28,\"\"),IF(AND(YEAR(JulSun1+35)=AnoCalendário,MONTH(JulSun1+35)=7),JulSun1+35,\"\"))","v":""}]
[]
[null,{"$f":"IF(DAY(JulSun1)=1,IF(AND(YEAR(JulSun1+29)=AnoCalendário,MONTH(JulSun1+29)=7),JulSun1+29,\"\"),IF(AND(YEAR(JulSun1+36)=AnoCalendário,MONTH(JulSun1+36)=7),JulSun1+36,\"\"))","v":""},{"$f":"IF(DAY(JulSun1)=1,IF(AND(YEAR(JulSun1+30)=AnoCalendário,MONTH(JulSun1+30)=7),JulSun1+30,\"\"),IF(AND(YEAR(JulSun1+37)=AnoCalendário,MONTH(JulSun1+37)=7),JulSun1+37,\"\"))","v":""},"OBSERVAÇÕES:"]

{"sheet":"Ago","index":7,"n_rows":15,"n_cols":8,"rows_kept":15,"merged":[[2,1,2,5],[14,3,14,7],[15,3,15,7]]}
[]
[]
[null,{"$f":"UPPER(TEXT(DATE(AnoCalendário,8,1),\"mmmm aaaa\"))","v":"AGOSTO 2013"}]
[null,"SEGUNDA-FEIRA","TERÇA-FEIRA","QUARTA-FEIRA","QUINTA-FEIRA","SEXTA-FEIRA","SÁBADO","DOMINGO"]
[null,{"$f":"IF(DAY(AgoSun1)=1,\"\",IF(AND(YEAR(AgoSun1+1)=AnoCalendário,MONTH(AgoSun1+1)=8),AgoSun1+1,\"\"))","v":""},{"$f":"IF(DAY(AgoSun1)=1,\"\",IF(AND(YEAR(AgoSun1+2)=AnoCalendário,MONTH(AgoSun1+2)=8),AgoSun1+2,\"\"))","v":""},{"$f":"IF(DAY(AgoSun1)=1,\"\",IF(AND(YEAR(AgoSun1+3)=AnoCalendário,MONTH(AgoSun1+3)=8),AgoSun1+3,\"\"))","v":""},{"$f":"IF(DAY(AgoSun1)=1,\"\",IF(AND(YEAR(AgoSun1+4)=AnoCalendário,MONTH(AgoSun1+4)=8),AgoSun1+4,\"\"))","v":"2013-08-01"},{"$f":"IF(DAY(AgoSun1)=1,\"\",IF(AND(YEAR(AgoSun1+5)=AnoCalendário,MONTH(AgoSun1+5)=8),AgoSun1+5,\"\"))","v":"2013-08-02"},{"$f":"IF(DAY(AgoSun1)=1,\"\",IF(AND(YEAR(AgoSun1+6)=AnoCalendário,MONTH(AgoSun1+6)=8),AgoSun1+6,\"\"))","v":"2013-08-03"},{"$f":"IF(DAY(AgoSun1)=1,IF(AND(YEAR(AgoSun1)=AnoCalendário,MONTH(AgoSun1)=8),AgoSun1,\"\"),IF(AND(YEAR(AgoSun1+7)=AnoCalendário,MONTH(AgoSun1+7)=8),AgoSun1+7,\"\"))","v":"2013-08-04"}]
[]
[null,{"$f":"IF(DAY(AgoSun1)=1,IF(AND(YEAR(AgoSun1+1)=AnoCalendário,MONTH(AgoSun1+1)=8),AgoSun1+1,\"\"),IF(AND(YEAR(AgoSun1+8)=AnoCalendário,MONTH(AgoSun1+8)=8),AgoSun1+8,\"\"))","v":"2013-08-05"},{"$f":"IF(DAY(AgoSun1)=1,IF(AND(YEAR(AgoSun1+2)=AnoCalendário,MONTH(AgoSun1+2)=8),AgoSun1+2,\"\"),IF(AND(YEAR(AgoSun1+9)=AnoCalendário,MONTH(AgoSun1+9)=8),AgoSun1+9,\"\"))","v":"2013-08-06"},{"$f":"IF(DAY(AgoSun1)=1,IF(AND(YEAR(AgoSun1+3)=AnoCalendário,MONTH(AgoSun1+3)=8),AgoSun1+3,\"\"),IF(AND(YEAR(AgoSun1+10)=AnoCalendário,MONTH(AgoSun1+10)=8),AgoSun1+10,\"\"))","v":"2013-08-07"},{"$f":"IF(DAY(AgoSun1)=1,IF(AND(YEAR(AgoSun1+4)=AnoCalendário,MONTH(AgoSun1+4)=8),AgoSun1+4,\"\"),IF(AND(YEAR(AgoSun1+11)=AnoCalendário,MONTH(AgoSun1+11)=8),AgoSun1+11,\"\"))","v":"2013-08-08"},{"$f":"IF(DAY(AgoSun1)=1,IF(AND(YEAR(AgoSun1+5)=AnoCalendário,MONTH(AgoSun1+5)=8),AgoSun1+5,\"\"),IF(AND(YEAR(AgoSun1+12)=AnoCalendário,MONTH(AgoSun1+12)=8),AgoSun1+12,\"\"))","v":"2013-08-09"},{"$f":"IF(DAY(AgoSun1)=1,IF(AND(YEAR(AgoSun1+6)=AnoCalendário,MONTH(AgoSun1+6)=8),AgoSun1+6,\"\"),IF(AND(YEAR(AgoSun1+13)=AnoCalendário,MONTH(AgoSun1+13)=8),AgoSun1+13,\"\"))","v":"2013-08-10"},{"$f":"IF(DAY(AgoSun1)=1,IF(AND(YEAR(AgoSun1+7)=AnoCalendário,MONTH(AgoSun1+7)=8),AgoSun1+7,\"\"),IF(AND(YEAR(AgoSun1+14)=AnoCalendário,MONTH(AgoSun1+14)=8),AgoSun1+14,\"\"))","v":"2013-08-11"}]
[]
[null,{"$f":"IF(DAY(AgoSun1)=1,IF(AND(YEAR(AgoSun1+8)=AnoCalendário,MONTH(AgoSun1+8)=8),AgoSun1+8,\"\"),IF(AND(YEAR(AgoSun1+15)=AnoCalendário,MONTH(AgoSun1+15)=8),AgoSun1+15,\"\"))","v":"2013-08-12"},{"$f":"IF(DAY(AgoSun1)=1,IF(AND(YEAR(AgoSun1+9)=AnoCalendário,MONTH(AgoSun1+9)=8),AgoSun1+9,\"\"),IF(AND(YEAR(AgoSun1+16)=AnoCalendário,MONTH(AgoSun1+16)=8),AgoSun1+16,\"\"))","v":"2013-08-13"},{"$f":"IF(DAY(AgoSun1)=1,IF(AND(YEAR(AgoSun1+10)=AnoCalendário,MONTH(AgoSun1+10)=8),AgoSun1+10,\"\"),IF(AND(YEAR(AgoSun1+17)=AnoCalendário,MONTH(AgoSun1+17)=8),AgoSun1+17,\"\"))","v":"2013-08-14"},{"$f":"IF(DAY(AgoSun1)=1,IF(AND(YEAR(AgoSun1+11)=AnoCalendário,MONTH(AgoSun1+11)=8),AgoSun1+11,\"\"),IF(AND(YEAR(AgoSun1+18)=AnoCalendário,MONTH(AgoSun1+18)=8),AgoSun1+18,\"\"))","v":"2013-08-15"},{"$f":"IF(DAY(AgoSun1)=1,IF(AND(YEAR(AgoSun1+12)=AnoCalendário,MONTH(AgoSun1+12)=8),AgoSun1+12,\"\"),IF(AND(YEAR(AgoSun1+19)=AnoCalendário,MONTH(AgoSun1+19)=8),AgoSun1+19,\"\"))","v":"2013-08-16"},{"$f":"IF(DAY(AgoSun1)=1,IF(AND(YEAR(AgoSun1+13)=AnoCalendário,MONTH(AgoSun1+13)=8),AgoSun1+13,\"\"),IF(AND(YEAR(AgoSun1+20)=AnoCalendário,MONTH(AgoSun1+20)=8),AgoSun1+20,\"\"))","v":"2013-08-17"},{"$f":"IF(DAY(AgoSun1)=1,IF(AND(YEAR(AgoSun1+14)=AnoCalendário,MONTH(AgoSun1+14)=8),AgoSun1+14,\"\"),IF(AND(YEAR(AgoSun1+21)=AnoCalendário,MONTH(AgoSun1+21)=8),AgoSun1+21,\"\"))","v":"2013-08-18"}]
[]
[null,{"$f":"IF(DAY(AgoSun1)=1,IF(AND(YEAR(AgoSun1+15)=AnoCalendário,MONTH(AgoSun1+15)=8),AgoSun1+15,\"\"),IF(AND(YEAR(AgoSun1+22)=AnoCalendário,MONTH(AgoSun1+22)=8),AgoSun1+22,\"\"))","v":"2013-08-19"},{"$f":"IF(DAY(AgoSun1)=1,IF(AND(YEAR(AgoSun1+16)=AnoCalendário,MONTH(AgoSun1+16)=8),AgoSun1+16,\"\"),IF(AND(YEAR(AgoSun1+23)=AnoCalendário,MONTH(AgoSun1+23)=8),AgoSun1+23,\"\"))","v":"2013-08-20"},{"$f":"IF(DAY(AgoSun1)=1,IF(AND(YEAR(AgoSun1+17)=AnoCalendário,MONTH(AgoSun1+17)=8),AgoSun1+17,\"\"),IF(AND(YEAR(AgoSun1+24)=AnoCalendário,MONTH(AgoSun1+24)=8),AgoSun1+24,\"\"))","v":"2013-08-21"},{"$f":"IF(DAY(AgoSun1)=1,IF(AND(YEAR(AgoSun1+18)=AnoCalendário,MONTH(AgoSun1+18)=8),AgoSun1+18,\"\"),IF(AND(YEAR(AgoSun1+25)=AnoCalendário,MONTH(AgoSun1+25)=8),AgoSun1+25,\"\"))","v":"2013-08-22"},{"$f":"IF(DAY(AgoSun1)=1,IF(AND(YEAR(AgoSun1+19)=AnoCalendário,MONTH(AgoSun1+19)=8),AgoSun1+19,\"\"),IF(AND(YEAR(AgoSun1+26)=AnoCalendário,MONTH(AgoSun1+26)=8),AgoSun1+26,\"\"))","v":"2013-08-23"},{"$f":"IF(DAY(AgoSun1)=1,IF(AND(YEAR(AgoSun1+20)=AnoCalendário,MONTH(AgoSun1+20)=8),AgoSun1+20,\"\"),IF(AND(YEAR(AgoSun1+27)=AnoCalendário,MONTH(AgoSun1+27)=8),AgoSun1+27,\"\"))","v":"2013-08-24"},{"$f":"IF(DAY(AgoSun1)=1,IF(AND(YEAR(AgoSun1+21)=AnoCalendário,MONTH(AgoSun1+21)=8),AgoSun1+21,\"\"),IF(AND(YEAR(AgoSun1+28)=AnoCalendário,MONTH(AgoSun1+28)=8),AgoSun1+28,\"\"))","v":"2013-08-25"}]
[]
[null,{"$f":"IF(DAY(AgoSun1)=1,IF(AND(YEAR(AgoSun1+22)=AnoCalendário,MONTH(AgoSun1+22)=8),AgoSun1+22,\"\"),IF(AND(YEAR(AgoSun1+29)=AnoCalendário,MONTH(AgoSun1+29)=8),AgoSun1+29,\"\"))","v":"2013-08-26"},{"$f":"IF(DAY(AgoSun1)=1,IF(AND(YEAR(AgoSun1+23)=AnoCalendário,MONTH(AgoSun1+23)=8),AgoSun1+23,\"\"),IF(AND(YEAR(AgoSun1+30)=AnoCalendário,MONTH(AgoSun1+30)=8),AgoSun1+30,\"\"))","v":"2013-08-27"},{"$f":"IF(DAY(AgoSun1)=1,IF(AND(YEAR(AgoSun1+24)=AnoCalendário,MONTH(AgoSun1+24)=8),AgoSun1+24,\"\"),IF(AND(YEAR(AgoSun1+31)=AnoCalendário,MONTH(AgoSun1+31)=8),AgoSun1+31,\"\"))","v":"2013-08-28"},{"$f":"IF(DAY(AgoSun1)=1,IF(AND(YEAR(AgoSun1+25)=AnoCalendário,MONTH(AgoSun1+25)=8),AgoSun1+25,\"\"),IF(AND(YEAR(AgoSun1+32)=AnoCalendário,MONTH(AgoSun1+32)=8),AgoSun1+32,\"\"))","v":"2013-08-29"},{"$f":"IF(DAY(AgoSun1)=1,IF(AND(YEAR(AgoSun1+26)=AnoCalendário,MONTH(AgoSun1+26)=8),AgoSun1+26,\"\"),IF(AND(YEAR(AgoSun1+33)=AnoCalendário,MONTH(AgoSun1+33)=8),AgoSun1+33,\"\"))","v":"2013-08-30"},{"$f":"IF(DAY(AgoSun1)=1,IF(AND(YEAR(AgoSun1+27)=AnoCalendário,MONTH(AgoSun1+27)=8),AgoSun1+27,\"\"),IF(AND(YEAR(AgoSun1+34)=AnoCalendário,MONTH(AgoSun1+34)=8),AgoSun1+34,\"\"))","v":"2013-08-31"},{"$f":"IF(DAY(AgoSun1)=1,IF(AND(YEAR(AgoSun1+28)=AnoCalendário,MONTH(AgoSun1+28)=8),AgoSun1+28,\"\"),IF(AND(YEAR(AgoSun1+35)=AnoCalendário,MONTH(AgoSun1+35)=8),AgoSun1+35,\"\"))","v":""}]
[]
[null,{"$f":"IF(DAY(AgoSun1)=1,IF(AND(YEAR(AgoSun1+29)=AnoCalendário,MONTH(AgoSun1+29)=8),AgoSun1+29,\"\"),IF(AND(YEAR(AgoSun1+36)=AnoCalendário,MONTH(AgoSun1+36)=8),AgoSun1+36,\"\"))","v":""},{"$f":"IF(DAY(AgoSun1)=1,IF(AND(YEAR(AgoSun1+30)=AnoCalendário,MONTH(AgoSun1+30)=8),AgoSun1+30,\"\"),IF(AND(YEAR(AgoSun1+37)=AnoCalendário,MONTH(AgoSun1+37)=8),AgoSun1+37,\"\"))","v":""},"OBSERVAÇÕES:"]

{"sheet":"Set","index":8,"n_rows":15,"n_cols":8,"rows_kept":15,"merged":[[2,1,2,5],[14,3,14,7],[15,3,15,7]]}
[]
[]
[null,{"$f":"UPPER(TEXT(DATE(AnoCalendário,9,1),\"mmmm aaaa\"))","v":"SETEMBRO 2013"}]
[null,"SEGUNDA-FEIRA","TERÇA-FEIRA","QUARTA-FEIRA","QUINTA-FEIRA","SEXTA-FEIRA","SÁBADO","DOMINGO"]
[null,{"$f":"IF(DAY(SetSun1)=1,\"\",IF(AND(YEAR(SetSun1+1)=AnoCalendário,MONTH(SetSun1+1)=9),SetSun1+1,\"\"))","v":""},{"$f":"IF(DAY(SetSun1)=1,\"\",IF(AND(YEAR(SetSun1+2)=AnoCalendário,MONTH(SetSun1+2)=9),SetSun1+2,\"\"))","v":""},{"$f":"IF(DAY(SetSun1)=1,\"\",IF(AND(YEAR(SetSun1+3)=AnoCalendário,MONTH(SetSun1+3)=9),SetSun1+3,\"\"))","v":""},{"$f":"IF(DAY(SetSun1)=1,\"\",IF(AND(YEAR(SetSun1+4)=AnoCalendário,MONTH(SetSun1+4)=9),SetSun1+4,\"\"))","v":""},{"$f":"IF(DAY(SetSun1)=1,\"\",IF(AND(YEAR(SetSun1+5)=AnoCalendário,MONTH(SetSun1+5)=9),SetSun1+5,\"\"))","v":""},{"$f":"IF(DAY(SetSun1)=1,\"\",IF(AND(YEAR(SetSun1+6)=AnoCalendário,MONTH(SetSun1+6)=9),SetSun1+6,\"\"))","v":""},{"$f":"IF(DAY(SetSun1)=1,IF(AND(YEAR(SetSun1)=AnoCalendário,MONTH(SetSun1)=9),SetSun1,\"\"),IF(AND(YEAR(SetSun1+7)=AnoCalendário,MONTH(SetSun1+7)=9),SetSun1+7,\"\"))","v":"2013-09-01"}]
[]
[null,{"$f":"IF(DAY(SetSun1)=1,IF(AND(YEAR(SetSun1+1)=AnoCalendário,MONTH(SetSun1+1)=9),SetSun1+1,\"\"),IF(AND(YEAR(SetSun1+8)=AnoCalendário,MONTH(SetSun1+8)=9),SetSun1+8,\"\"))","v":"2013-09-02"},{"$f":"IF(DAY(SetSun1)=1,IF(AND(YEAR(SetSun1+2)=AnoCalendário,MONTH(SetSun1+2)=9),SetSun1+2,\"\"),IF(AND(YEAR(SetSun1+9)=AnoCalendário,MONTH(SetSun1+9)=9),SetSun1+9,\"\"))","v":"2013-09-03"},{"$f":"IF(DAY(SetSun1)=1,IF(AND(YEAR(SetSun1+3)=AnoCalendário,MONTH(SetSun1+3)=9),SetSun1+3,\"\"),IF(AND(YEAR(SetSun1+10)=AnoCalendário,MONTH(SetSun1+10)=9),SetSun1+10,\"\"))","v":"2013-09-04"},{"$f":"IF(DAY(SetSun1)=1,IF(AND(YEAR(SetSun1+4)=AnoCalendário,MONTH(SetSun1+4)=9),SetSun1+4,\"\"),IF(AND(YEAR(SetSun1+11)=AnoCalendário,MONTH(SetSun1+11)=9),SetSun1+11,\"\"))","v":"2013-09-05"},{"$f":"IF(DAY(SetSun1)=1,IF(AND(YEAR(SetSun1+5)=AnoCalendário,MONTH(SetSun1+5)=9),SetSun1+5,\"\"),IF(AND(YEAR(SetSun1+12)=AnoCalendário,MONTH(SetSun1+12)=9),SetSun1+12,\"\"))","v":"2013-09-06"},{"$f":"IF(DAY(SetSun1)=1,IF(AND(YEAR(SetSun1+6)=AnoCalendário,MONTH(SetSun1+6)=9),SetSun1+6,\"\"),IF(AND(YEAR(SetSun1+13)=AnoCalendário,MONTH(SetSun1+13)=9),SetSun1+13,\"\"))","v":"2013-09-07"},{"$f":"IF(DAY(SetSun1)=1,IF(AND(YEAR(SetSun1+7)=AnoCalendário,MONTH(SetSun1+7)=9),SetSun1+7,\"\"),IF(AND(YEAR(SetSun1+14)=AnoCalendário,MONTH(SetSun1+14)=9),SetSun1+14,\"\"))","v":"2013-09-08"}]
[]
[null,{"$f":"IF(DAY(SetSun1)=1,IF(AND(YEAR(SetSun1+8)=AnoCalendário,MONTH(SetSun1+8)=9),SetSun1+8,\"\"),IF(AND(YEAR(SetSun1+15)=AnoCalendário,MONTH(SetSun1+15)=9),SetSun1+15,\"\"))","v":"2013-09-09"},{"$f":"IF(DAY(SetSun1)=1,IF(AND(YEAR(SetSun1+9)=AnoCalendário,MONTH(SetSun1+9)=9),SetSun1+9,\"\"),IF(AND(YEAR(SetSun1+16)=AnoCalendário,MONTH(SetSun1+16)=9),SetSun1+16,\"\"))","v":"2013-09-10"},{"$f":"IF(DAY(SetSun1)=1,IF(AND(YEAR(SetSun1+10)=AnoCalendário,MONTH(SetSun1+10)=9),SetSun1+10,\"\"),IF(AND(YEAR(SetSun1+17)=AnoCalendário,MONTH(SetSun1+17)=9),SetSun1+17,\"\"))","v":"2013-09-11"},{"$f":"IF(DAY(SetSun1)=1,IF(AND(YEAR(SetSun1+11)=AnoCalendário,MONTH(SetSun1+11)=9),SetSun1+11,\"\"),IF(AND(YEAR(SetSun1+18)=AnoCalendário,MONTH(SetSun1+18)=9),SetSun1+18,\"\"))","v":"2013-09-12"},{"$f":"IF(DAY(SetSun1)=1,IF(AND(YEAR(SetSun1+12)=AnoCalendário,MONTH(SetSun1+12)=9),SetSun1+12,\"\"),IF(AND(YEAR(SetSun1+19)=AnoCalendário,MONTH(SetSun1+19)=9),SetSun1+19,\"\"))","v":"2013-09-13"},{"$f":"IF(DAY(SetSun1)=1,IF(AND(YEAR(SetSun1+13)=AnoCalendário,MONTH(SetSun1+13)=9),SetSun1+13,\"\"),IF(AND(YEAR(SetSun1+20)=AnoCalendário,MONTH(SetSun1+20)=9),SetSun1+20,\"\"))","v":"2013-09-14"},{"$f":"IF(DAY(SetSun1)=1,IF(AND(YEAR(SetSun1+14)=AnoCalendário,MONTH(SetSun1+14)=9),SetSun1+14,\"\"),IF(AND(YEAR(SetSun1+21)=AnoCalendário,MONTH(SetSun1+21)=9),SetSun1+21,\"\"))","v":"2013-09-15"}]
[]
[null,{"$f":"IF(DAY(SetSun1)=1,IF(AND(YEAR(SetSun1+15)=AnoCalendário,MONTH(SetSun1+15)=9),SetSun1+15,\"\"),IF(AND(YEAR(SetSun1+22)=AnoCalendário,MONTH(SetSun1+22)=9),SetSun1+22,\"\"))","v":"2013-09-16"},{"$f":"IF(DAY(SetSun1)=1,IF(AND(YEAR(SetSun1+16)=AnoCalendário,MONTH(SetSun1+16)=9),SetSun1+16,\"\"),IF(AND(YEAR(SetSun1+23)=AnoCalendário,MONTH(SetSun1+23)=9),SetSun1+23,\"\"))","v":"2013-09-17"},{"$f":"IF(DAY(SetSun1)=1,IF(AND(YEAR(SetSun1+17)=AnoCalendário,MONTH(SetSun1+17)=9),SetSun1+17,\"\"),IF(AND(YEAR(SetSun1+24)=AnoCalendário,MONTH(SetSun1+24)=9),SetSun1+24,\"\"))","v":"2013-09-18"},{"$f":"IF(DAY(SetSun1)=1,IF(AND(YEAR(SetSun1+18)=AnoCalendário,MONTH(SetSun1+18)=9),SetSun1+18,\"\"),IF(AND(YEAR(SetSun1+25)=AnoCalendário,MONTH(SetSun1+25)=9),SetSun1+25,\"\"))","v":"2013-09-19"},{"$f":"IF(DAY(SetSun1)=1,IF(AND(YEAR(SetSun1+19)=AnoCalendário,MONTH(SetSun1+19)=9),SetSun1+19,\"\"),IF(AND(YEAR(SetSun1+26)=AnoCalendário,MONTH(SetSun1+26)=9),SetSun1+26,\"\"))","v":"2013-09-20"},{"$f":"IF(DAY(SetSun1)=1,IF(AND(YEAR(SetSun1+20)=AnoCalendário,MONTH(SetSun1+20)=9),SetSun1+20,\"\"),IF(AND(YEAR(SetSun1+27)=AnoCalendário,MONTH(SetSun1+27)=9),SetSun1+27,\"\"))","v":"2013-09-21"},{"$f":"IF(DAY(SetSun1)=1,IF(AND(YEAR(SetSun1+21)=AnoCalendário,MONTH(SetSun1+21)=9),SetSun1+21,\"\"),IF(AND(YEAR(SetSun1+28)=AnoCalendário,MONTH(SetSun1+28)=9),SetSun1+28,\"\"))","v":"2013-09-22"}]
[]
[null,{"$f":"IF(DAY(SetSun1)=1,IF(AND(YEAR(SetSun1+22)=AnoCalendário,MONTH(SetSun1+22)=9),SetSun1+22,\"\"),IF(AND(YEAR(SetSun1+29)=AnoCalendário,MONTH(SetSun1+29)=9),SetSun1+29,\"\"))","v":"2013-09-23"},{"$f":"IF(DAY(SetSun1)=1,IF(AND(YEAR(SetSun1+23)=AnoCalendário,MONTH(SetSun1+23)=9),SetSun1+23,\"\"),IF(AND(YEAR(SetSun1+30)=AnoCalendário,MONTH(SetSun1+30)=9),SetSun1+30,\"\"))","v":"2013-09-24"},{"$f":"IF(DAY(SetSun1)=1,IF(AND(YEAR(SetSun1+24)=AnoCalendário,MONTH(SetSun1+24)=9),SetSun1+24,\"\"),IF(AND(YEAR(SetSun1+31)=AnoCalendário,MONTH(SetSun1+31)=9),SetSun1+31,\"\"))","v":"2013-09-25"},{"$f":"IF(DAY(SetSun1)=1,IF(AND(YEAR(SetSun1+25)=AnoCalendário,MONTH(SetSun1+25)=9),SetSun1+25,\"\"),IF(AND(YEAR(SetSun1+32)=AnoCalendário,MONTH(SetSun1+32)=9),SetSun1+32,\"\"))","v":"2013-09-26"},{"$f":"IF(DAY(SetSun1)=1,IF(AND(YEAR(SetSun1+26)=AnoCalendário,MONTH(SetSun1+26)=9),SetSun1+26,\"\"),IF(AND(YEAR(SetSun1+33)=AnoCalendário,MONTH(SetSun1+33)=9),SetSun1+33,\"\"))","v":"2013-09-27"},{"$f":"IF(DAY(SetSun1)=1,IF(AND(YEAR(SetSun1+27)=AnoCalendário,MONTH(SetSun1+27)=9),SetSun1+27,\"\"),IF(AND(YEAR(SetSun1+34)=AnoCalendário,MONTH(SetSun1+34)=9),SetSun1+34,\"\"))","v":"2013-09-28"},{"$f":"IF(DAY(SetSun1)=1,IF(AND(YEAR(SetSun1+28)=AnoCalendário,MONTH(SetSun1+28)=9),SetSun1+28,\"\"),IF(AND(YEAR(SetSun1+35)=AnoCalendário,MONTH(SetSun1+35)=9),SetSun1+35,\"\"))","v":"2013-09-29"}]
[]
[null,{"$f":"IF(DAY(SetSun1)=1,IF(AND(YEAR(SetSun1+29)=AnoCalendário,MONTH(SetSun1+29)=9),SetSun1+29,\"\"),IF(AND(YEAR(SetSun1+36)=AnoCalendário,MONTH(SetSun1+36)=9),SetSun1+36,\"\"))","v":"2013-09-30"},{"$f":"IF(DAY(SetSun1)=1,IF(AND(YEAR(SetSun1+30)=AnoCalendário,MONTH(SetSun1+30)=9),SetSun1+30,\"\"),IF(AND(YEAR(SetSun1+37)=AnoCalendário,MONTH(SetSun1+37)=9),SetSun1+37,\"\"))","v":""},"OBSERVAÇÕES:"]

{"sheet":"Out","index":9,"n_rows":15,"n_cols":8,"rows_kept":15,"merged":[[2,1,2,5],[14,3,14,7],[15,3,15,7]]}
[]
[]
[null,{"$f":"UPPER(TEXT(DATE(AnoCalendário,10,1),\"mmmm aaaa\"))","v":"OUTUBRO 2013"}]
[null,"SEGUNDA-FEIRA","TERÇA-FEIRA","QUARTA-FEIRA","QUINTA-FEIRA","SEXTA-FEIRA","SÁBADO","DOMINGO"]
[null,{"$f":"IF(DAY(OutSun1)=1,\"\",IF(AND(YEAR(OutSun1+1)=AnoCalendário,MONTH(OutSun1+1)=10),OutSun1+1,\"\"))","v":""},{"$f":"IF(DAY(OutSun1)=1,\"\",IF(AND(YEAR(OutSun1+2)=AnoCalendário,MONTH(OutSun1+2)=10),OutSun1+2,\"\"))","v":"2013-10-01"},{"$f":"IF(DAY(OutSun1)=1,\"\",IF(AND(YEAR(OutSun1+3)=AnoCalendário,MONTH(OutSun1+3)=10),OutSun1+3,\"\"))","v":"2013-10-02"},{"$f":"IF(DAY(OutSun1)=1,\"\",IF(AND(YEAR(OutSun1+4)=AnoCalendário,MONTH(OutSun1+4)=10),OutSun1+4,\"\"))","v":"2013-10-03"},{"$f":"IF(DAY(OutSun1)=1,\"\",IF(AND(YEAR(OutSun1+5)=AnoCalendário,MONTH(OutSun1+5)=10),OutSun1+5,\"\"))","v":"2013-10-04"},{"$f":"IF(DAY(OutSun1)=1,\"\",IF(AND(YEAR(OutSun1+6)=AnoCalendário,MONTH(OutSun1+6)=10),OutSun1+6,\"\"))","v":"2013-10-05"},{"$f":"IF(DAY(OutSun1)=1,IF(AND(YEAR(OutSun1)=AnoCalendário,MONTH(OutSun1)=10),OutSun1,\"\"),IF(AND(YEAR(OutSun1+7)=AnoCalendário,MONTH(OutSun1+7)=10),OutSun1+7,\"\"))","v":"2013-10-06"}]
[]
[null,{"$f":"IF(DAY(OutSun1)=1,IF(AND(YEAR(OutSun1+1)=AnoCalendário,MONTH(OutSun1+1)=10),OutSun1+1,\"\"),IF(AND(YEAR(OutSun1+8)=AnoCalendário,MONTH(OutSun1+8)=10),OutSun1+8,\"\"))","v":"2013-10-07"},{"$f":"IF(DAY(OutSun1)=1,IF(AND(YEAR(OutSun1+2)=AnoCalendário,MONTH(OutSun1+2)=10),OutSun1+2,\"\"),IF(AND(YEAR(OutSun1+9)=AnoCalendário,MONTH(OutSun1+9)=10),OutSun1+9,\"\"))","v":"2013-10-08"},{"$f":"IF(DAY(OutSun1)=1,IF(AND(YEAR(OutSun1+3)=AnoCalendário,MONTH(OutSun1+3)=10),OutSun1+3,\"\"),IF(AND(YEAR(OutSun1+10)=AnoCalendário,MONTH(OutSun1+10)=10),OutSun1+10,\"\"))","v":"2013-10-09"},{"$f":"IF(DAY(OutSun1)=1,IF(AND(YEAR(OutSun1+4)=AnoCalendário,MONTH(OutSun1+4)=10),OutSun1+4,\"\"),IF(AND(YEAR(OutSun1+11)=AnoCalendário,MONTH(OutSun1+11)=10),OutSun1+11,\"\"))","v":"2013-10-10"},{"$f":"IF(DAY(OutSun1)=1,IF(AND(YEAR(OutSun1+5)=AnoCalendário,MONTH(OutSun1+5)=10),OutSun1+5,\"\"),IF(AND(YEAR(OutSun1+12)=AnoCalendário,MONTH(OutSun1+12)=10),OutSun1+12,\"\"))","v":"2013-10-11"},{"$f":"IF(DAY(OutSun1)=1,IF(AND(YEAR(OutSun1+6)=AnoCalendário,MONTH(OutSun1+6)=10),OutSun1+6,\"\"),IF(AND(YEAR(OutSun1+13)=AnoCalendário,MONTH(OutSun1+13)=10),OutSun1+13,\"\"))","v":"2013-10-12"},{"$f":"IF(DAY(OutSun1)=1,IF(AND(YEAR(OutSun1+7)=AnoCalendário,MONTH(OutSun1+7)=10),OutSun1+7,\"\"),IF(AND(YEAR(OutSun1+14)=AnoCalendário,MONTH(OutSun1+14)=10),OutSun1+14,\"\"))","v":"2013-10-13"}]
[]
[null,{"$f":"IF(DAY(OutSun1)=1,IF(AND(YEAR(OutSun1+8)=AnoCalendário,MONTH(OutSun1+8)=10),OutSun1+8,\"\"),IF(AND(YEAR(OutSun1+15)=AnoCalendário,MONTH(OutSun1+15)=10),OutSun1+15,\"\"))","v":"2013-10-14"},{"$f":"IF(DAY(OutSun1)=1,IF(AND(YEAR(OutSun1+9)=AnoCalendário,MONTH(OutSun1+9)=10),OutSun1+9,\"\"),IF(AND(YEAR(OutSun1+16)=AnoCalendário,MONTH(OutSun1+16)=10),OutSun1+16,\"\"))","v":"2013-10-15"},{"$f":"IF(DAY(OutSun1)=1,IF(AND(YEAR(OutSun1+10)=AnoCalendário,MONTH(OutSun1+10)=10),OutSun1+10,\"\"),IF(AND(YEAR(OutSun1+17)=AnoCalendário,MONTH(OutSun1+17)=10),OutSun1+17,\"\"))","v":"2013-10-16"},{"$f":"IF(DAY(OutSun1)=1,IF(AND(YEAR(OutSun1+11)=AnoCalendário,MONTH(OutSun1+11)=10),OutSun1+11,\"\"),IF(AND(YEAR(OutSun1+18)=AnoCalendário,MONTH(OutSun1+18)=10),OutSun1+18,\"\"))","v":"2013-10-17"},{"$f":"IF(DAY(OutSun1)=1,IF(AND(YEAR(OutSun1+12)=AnoCalendário,MONTH(OutSun1+12)=10),OutSun1+12,\"\"),IF(AND(YEAR(OutSun1+19)=AnoCalendário,MONTH(OutSun1+19)=10),OutSun1+19,\"\"))","v":"2013-10-18"},{"$f":"IF(DAY(OutSun1)=1,IF(AND(YEAR(OutSun1+13)=AnoCalendário,MONTH(OutSun1+13)=10),OutSun1+13,\"\"),IF(AND(YEAR(OutSun1+20)=AnoCalendário,MONTH(OutSun1+20)=10),OutSun1+20,\"\"))","v":"2013-10-19"},{"$f":"IF(DAY(OutSun1)=1,IF(AND(YEAR(OutSun1+14)=AnoCalendário,MONTH(OutSun1+14)=10),OutSun1+14,\"\"),IF(AND(YEAR(OutSun1+21)=AnoCalendário,MONTH(OutSun1+21)=10),OutSun1+21,\"\"))","v":"2013-10-20"}]
[]
[null,{"$f":"IF(DAY(OutSun1)=1,IF(AND(YEAR(OutSun1+15)=AnoCalendário,MONTH(OutSun1+15)=10),OutSun1+15,\"\"),IF(AND(YEAR(OutSun1+22)=AnoCalendário,MONTH(OutSun1+22)=10),OutSun1+22,\"\"))","v":"2013-10-21"},{"$f":"IF(DAY(OutSun1)=1,IF(AND(YEAR(OutSun1+16)=AnoCalendário,MONTH(OutSun1+16)=10),OutSun1+16,\"\"),IF(AND(YEAR(OutSun1+23)=AnoCalendário,MONTH(OutSun1+23)=10),OutSun1+23,\"\"))","v":"2013-10-22"},{"$f":"IF(DAY(OutSun1)=1,IF(AND(YEAR(OutSun1+17)=AnoCalendário,MONTH(OutSun1+17)=10),OutSun1+17,\"\"),IF(AND(YEAR(OutSun1+24)=AnoCalendário,MONTH(OutSun1+24)=10),OutSun1+24,\"\"))","v":"2013-10-23"},{"$f":"IF(DAY(OutSun1)=1,IF(AND(YEAR(OutSun1+18)=AnoCalendário,MONTH(OutSun1+18)=10),OutSun1+18,\"\"),IF(AND(YEAR(OutSun1+25)=AnoCalendário,MONTH(OutSun1+25)=10),OutSun1+25,\"\"))","v":"2013-10-24"},{"$f":"IF(DAY(OutSun1)=1,IF(AND(YEAR(OutSun1+19)=AnoCalendário,MONTH(OutSun1+19)=10),OutSun1+19,\"\"),IF(AND(YEAR(OutSun1+26)=AnoCalendário,MONTH(OutSun1+26)=10),OutSun1+26,\"\"))","v":"2013-10-25"},{"$f":"IF(DAY(OutSun1)=1,IF(AND(YEAR(OutSun1+20)=AnoCalendário,MONTH(OutSun1+20)=10),OutSun1+20,\"\"),IF(AND(YEAR(OutSun1+27)=AnoCalendário,MONTH(OutSun1+27)=10),OutSun1+27,\"\"))","v":"2013-10-26"},{"$f":"IF(DAY(OutSun1)=1,IF(AND(YEAR(OutSun1+21)=AnoCalendário,MONTH(OutSun1+21)=10),OutSun1+21,\"\"),IF(AND(YEAR(OutSun1+28)=AnoCalendário,MONTH(OutSun1+28)=10),OutSun1+28,\"\"))","v":"2013-10-27"}]
[]
[null,{"$f":"IF(DAY(OutSun1)=1,IF(AND(YEAR(OutSun1+22)=AnoCalendário,MONTH(OutSun1+22)=10),OutSun1+22,\"\"),IF(AND(YEAR(OutSun1+29)=AnoCalendário,MONTH(OutSun1+29)=10),OutSun1+29,\"\"))","v":"2013-10-28"},{"$f":"IF(DAY(OutSun1)=1,IF(AND(YEAR(OutSun1+23)=AnoCalendário,MONTH(OutSun1+23)=10),OutSun1+23,\"\"),IF(AND(YEAR(OutSun1+30)=AnoCalendário,MONTH(OutSun1+30)=10),OutSun1+30,\"\"))","v":"2013-10-29"},{"$f":"IF(DAY(OutSun1)=1,IF(AND(YEAR(OutSun1+24)=AnoCalendário,MONTH(OutSun1+24)=10),OutSun1+24,\"\"),IF(AND(YEAR(OutSun1+31)=AnoCalendário,MONTH(OutSun1+31)=10),OutSun1+31,\"\"))","v":"2013-10-30"},{"$f":"IF(DAY(OutSun1)=1,IF(AND(YEAR(OutSun1+25)=AnoCalendário,MONTH(OutSun1+25)=10),OutSun1+25,\"\"),IF(AND(YEAR(OutSun1+32)=AnoCalendário,MONTH(OutSun1+32)=10),OutSun1+32,\"\"))","v":"2013-10-31"},{"$f":"IF(DAY(OutSun1)=1,IF(AND(YEAR(OutSun1+26)=AnoCalendário,MONTH(OutSun1+26)=10),OutSun1+26,\"\"),IF(AND(YEAR(OutSun1+33)=AnoCalendário,MONTH(OutSun1+33)=10),OutSun1+33,\"\"))","v":""},{"$f":"IF(DAY(OutSun1)=1,IF(AND(YEAR(OutSun1+27)=AnoCalendário,MONTH(OutSun1+27)=10),OutSun1+27,\"\"),IF(AND(YEAR(OutSun1+34)=AnoCalendário,MONTH(OutSun1+34)=10),OutSun1+34,\"\"))","v":""},{"$f":"IF(DAY(OutSun1)=1,IF(AND(YEAR(OutSun1+28)=AnoCalendário,MONTH(OutSun1+28)=10),OutSun1+28,\"\"),IF(AND(YEAR(OutSun1+35)=AnoCalendário,MONTH(OutSun1+35)=10),OutSun1+35,\"\"))","v":""}]
[]
[null,{"$f":"IF(DAY(OutSun1)=1,IF(AND(YEAR(OutSun1+29)=AnoCalendário,MONTH(OutSun1+29)=10),OutSun1+29,\"\"),IF(AND(YEAR(OutSun1+36)=AnoCalendário,MONTH(OutSun1+36)=10),OutSun1+36,\"\"))","v":""},{"$f":"IF(DAY(OutSun1)=1,IF(AND(YEAR(OutSun1+30)=AnoCalendário,MONTH(OutSun1+30)=10),OutSun1+30,\"\"),IF(AND(YEAR(OutSun1+37)=AnoCalendário,MONTH(OutSun1+37)=10),OutSun1+37,\"\"))","v":""},"OBSERVAÇÕES:"]

{"sheet":"Nov","index":10,"n_rows":15,"n_cols":8,"rows_kept":15,"merged":[[2,1,2,5],[14,3,14,7],[15,3,15,7]]}
[]
[]
[null,{"$f":"UPPER(TEXT(DATE(AnoCalendário,11,1),\"mmmm aaaa\"))","v":"NOVEMBRO 2013"}]
[null,"SEGUNDA-FEIRA","TERÇA-FEIRA","QUARTA-FEIRA","QUINTA-FEIRA","SEXTA-FEIRA","SÁBADO","DOMINGO"]
[null,{"$f":"IF(DAY(NovSun1)=1,\"\",IF(AND(YEAR(NovSun1+1)=AnoCalendário,MONTH(NovSun1+1)=11),NovSun1+1,\"\"))","v":""},{"$f":"IF(DAY(NovSun1)=1,\"\",IF(AND(YEAR(NovSun1+2)=AnoCalendário,MONTH(NovSun1+2)=11),NovSun1+2,\"\"))","v":""},{"$f":"IF(DAY(NovSun1)=1,\"\",IF(AND(YEAR(NovSun1+3)=AnoCalendário,MONTH(NovSun1+3)=11),NovSun1+3,\"\"))","v":""},{"$f":"IF(DAY(NovSun1)=1,\"\",IF(AND(YEAR(NovSun1+4)=AnoCalendário,MONTH(NovSun1+4)=11),NovSun1+4,\"\"))","v":""},{"$f":"IF(DAY(NovSun1)=1,\"\",IF(AND(YEAR(NovSun1+5)=AnoCalendário,MONTH(NovSun1+5)=11),NovSun1+5,\"\"))","v":"2013-11-01"},{"$f":"IF(DAY(NovSun1)=1,\"\",IF(AND(YEAR(NovSun1+6)=AnoCalendário,MONTH(NovSun1+6)=11),NovSun1+6,\"\"))","v":"2013-11-02"},{"$f":"IF(DAY(NovSun1)=1,IF(AND(YEAR(NovSun1)=AnoCalendário,MONTH(NovSun1)=11),NovSun1,\"\"),IF(AND(YEAR(NovSun1+7)=AnoCalendário,MONTH(NovSun1+7)=11),NovSun1+7,\"\"))","v":"2013-11-03"}]
[]
[null,{"$f":"IF(DAY(NovSun1)=1,IF(AND(YEAR(NovSun1+1)=AnoCalendário,MONTH(NovSun1+1)=11),NovSun1+1,\"\"),IF(AND(YEAR(NovSun1+8)=AnoCalendário,MONTH(NovSun1+8)=11),NovSun1+8,\"\"))","v":"2013-11-04"},{"$f":"IF(DAY(NovSun1)=1,IF(AND(YEAR(NovSun1+2)=AnoCalendário,MONTH(NovSun1+2)=11),NovSun1+2,\"\"),IF(AND(YEAR(NovSun1+9)=AnoCalendário,MONTH(NovSun1+9)=11),NovSun1+9,\"\"))","v":"2013-11-05"},{"$f":"IF(DAY(NovSun1)=1,IF(AND(YEAR(NovSun1+3)=AnoCalendário,MONTH(NovSun1+3)=11),NovSun1+3,\"\"),IF(AND(YEAR(NovSun1+10)=AnoCalendário,MONTH(NovSun1+10)=11),NovSun1+10,\"\"))","v":"2013-11-06"},{"$f":"IF(DAY(NovSun1)=1,IF(AND(YEAR(NovSun1+4)=AnoCalendário,MONTH(NovSun1+4)=11),NovSun1+4,\"\"),IF(AND(YEAR(NovSun1+11)=AnoCalendário,MONTH(NovSun1+11)=11),NovSun1+11,\"\"))","v":"2013-11-07"},{"$f":"IF(DAY(NovSun1)=1,IF(AND(YEAR(NovSun1+5)=AnoCalendário,MONTH(NovSun1+5)=11),NovSun1+5,\"\"),IF(AND(YEAR(NovSun1+12)=AnoCalendário,MONTH(NovSun1+12)=11),NovSun1+12,\"\"))","v":"2013-11-08"},{"$f":"IF(DAY(NovSun1)=1,IF(AND(YEAR(NovSun1+6)=AnoCalendário,MONTH(NovSun1+6)=11),NovSun1+6,\"\"),IF(AND(YEAR(NovSun1+13)=AnoCalendário,MONTH(NovSun1+13)=11),NovSun1+13,\"\"))","v":"2013-11-09"},{"$f":"IF(DAY(NovSun1)=1,IF(AND(YEAR(NovSun1+7)=AnoCalendário,MONTH(NovSun1+7)=11),NovSun1+7,\"\"),IF(AND(YEAR(NovSun1+14)=AnoCalendário,MONTH(NovSun1+14)=11),NovSun1+14,\"\"))","v":"2013-11-10"}]
[]
[null,{"$f":"IF(DAY(NovSun1)=1,IF(AND(YEAR(NovSun1+8)=AnoCalendário,MONTH(NovSun1+8)=11),NovSun1+8,\"\"),IF(AND(YEAR(NovSun1+15)=AnoCalendário,MONTH(NovSun1+15)=11),NovSun1+15,\"\"))","v":"2013-11-11"},{"$f":"IF(DAY(NovSun1)=1,IF(AND(YEAR(NovSun1+9)=AnoCalendário,MONTH(NovSun1+9)=11),NovSun1+9,\"\"),IF(AND(YEAR(NovSun1+16)=AnoCalendário,MONTH(NovSun1+16)=11),NovSun1+16,\"\"))","v":"2013-11-12"},{"$f":"IF(DAY(NovSun1)=1,IF(AND(YEAR(NovSun1+10)=AnoCalendário,MONTH(NovSun1+10)=11),NovSun1+10,\"\"),IF(AND(YEAR(NovSun1+17)=AnoCalendário,MONTH(NovSun1+17)=11),NovSun1+17,\"\"))","v":"2013-11-13"},{"$f":"IF(DAY(NovSun1)=1,IF(AND(YEAR(NovSun1+11)=AnoCalendário,MONTH(NovSun1+11)=11),NovSun1+11,\"\"),IF(AND(YEAR(NovSun1+18)=AnoCalendário,MONTH(NovSun1+18)=11),NovSun1+18,\"\"))","v":"2013-11-14"},{"$f":"IF(DAY(NovSun1)=1,IF(AND(YEAR(NovSun1+12)=AnoCalendário,MONTH(NovSun1+12)=11),NovSun1+12,\"\"),IF(AND(YEAR(NovSun1+19)=AnoCalendário,MONTH(NovSun1+19)=11),NovSun1+19,\"\"))","v":"2013-11-15"},{"$f":"IF(DAY(NovSun1)=1,IF(AND(YEAR(NovSun1+13)=AnoCalendário,MONTH(NovSun1+13)=11),NovSun1+13,\"\"),IF(AND(YEAR(NovSun1+20)=AnoCalendário,MONTH(NovSun1+20)=11),NovSun1+20,\"\"))","v":"2013-11-16"},{"$f":"IF(DAY(NovSun1)=1,IF(AND(YEAR(NovSun1+14)=AnoCalendário,MONTH(NovSun1+14)=11),NovSun1+14,\"\"),IF(AND(YEAR(NovSun1+21)=AnoCalendário,MONTH(NovSun1+21)=11),NovSun1+21,\"\"))","v":"2013-11-17"}]
[]
[null,{"$f":"IF(DAY(NovSun1)=1,IF(AND(YEAR(NovSun1+15)=AnoCalendário,MONTH(NovSun1+15)=11),NovSun1+15,\"\"),IF(AND(YEAR(NovSun1+22)=AnoCalendário,MONTH(NovSun1+22)=11),NovSun1+22,\"\"))","v":"2013-11-18"},{"$f":"IF(DAY(NovSun1)=1,IF(AND(YEAR(NovSun1+16)=AnoCalendário,MONTH(NovSun1+16)=11),NovSun1+16,\"\"),IF(AND(YEAR(NovSun1+23)=AnoCalendário,MONTH(NovSun1+23)=11),NovSun1+23,\"\"))","v":"2013-11-19"},{"$f":"IF(DAY(NovSun1)=1,IF(AND(YEAR(NovSun1+17)=AnoCalendário,MONTH(NovSun1+17)=11),NovSun1+17,\"\"),IF(AND(YEAR(NovSun1+24)=AnoCalendário,MONTH(NovSun1+24)=11),NovSun1+24,\"\"))","v":"2013-11-20"},{"$f":"IF(DAY(NovSun1)=1,IF(AND(YEAR(NovSun1+18)=AnoCalendário,MONTH(NovSun1+18)=11),NovSun1+18,\"\"),IF(AND(YEAR(NovSun1+25)=AnoCalendário,MONTH(NovSun1+25)=11),NovSun1+25,\"\"))","v":"2013-11-21"},{"$f":"IF(DAY(NovSun1)=1,IF(AND(YEAR(NovSun1+19)=AnoCalendário,MONTH(NovSun1+19)=11),NovSun1+19,\"\"),IF(AND(YEAR(NovSun1+26)=AnoCalendário,MONTH(NovSun1+26)=11),NovSun1+26,\"\"))","v":"2013-11-22"},{"$f":"IF(DAY(NovSun1)=1,IF(AND(YEAR(NovSun1+20)=AnoCalendário,MONTH(NovSun1+20)=11),NovSun1+20,\"\"),IF(AND(YEAR(NovSun1+27)=AnoCalendário,MONTH(NovSun1+27)=11),NovSun1+27,\"\"))","v":"2013-11-23"},{"$f":"IF(DAY(NovSun1)=1,IF(AND(YEAR(NovSun1+21)=AnoCalendário,MONTH(NovSun1+21)=11),NovSun1+21,\"\"),IF(AND(YEAR(NovSun1+28)=AnoCalendário,MONTH(NovSun1+28)=11),NovSun1+28,\"\"))","v":"2013-11-24"}]
[]
[null,{"$f":"IF(DAY(NovSun1)=1,IF(AND(YEAR(NovSun1+22)=AnoCalendário,MONTH(NovSun1+22)=11),NovSun1+22,\"\"),IF(AND(YEAR(NovSun1+29)=AnoCalendário,MONTH(NovSun1+29)=11),NovSun1+29,\"\"))","v":"2013-11-25"},{"$f":"IF(DAY(NovSun1)=1,IF(AND(YEAR(NovSun1+23)=AnoCalendário,MONTH(NovSun1+23)=11),NovSun1+23,\"\"),IF(AND(YEAR(NovSun1+30)=AnoCalendário,MONTH(NovSun1+30)=11),NovSun1+30,\"\"))","v":"2013-11-26"},{"$f":"IF(DAY(NovSun1)=1,IF(AND(YEAR(NovSun1+24)=AnoCalendário,MONTH(NovSun1+24)=11),NovSun1+24,\"\"),IF(AND(YEAR(NovSun1+31)=AnoCalendário,MONTH(NovSun1+31)=11),NovSun1+31,\"\"))","v":"2013-11-27"},{"$f":"IF(DAY(NovSun1)=1,IF(AND(YEAR(NovSun1+25)=AnoCalendário,MONTH(NovSun1+25)=11),NovSun1+25,\"\"),IF(AND(YEAR(NovSun1+32)=AnoCalendário,MONTH(NovSun1+32)=11),NovSun1+32,\"\"))","v":"2013-11-28"},{"$f":"IF(DAY(NovSun1)=1,IF(AND(YEAR(NovSun1+26)=AnoCalendário,MONTH(NovSun1+26)=11),NovSun1+26,\"\"),IF(AND(YEAR(NovSun1+33)=AnoCalendário,MONTH(NovSun1+33)=11),NovSun1+33,\"\"))","v":"2013-11-29"},{"$f":"IF(DAY(NovSun1)=1,IF(AND(YEAR(NovSun1+27)=AnoCalendário,MONTH(NovSun1+27)=11),NovSun1+27,\"\"),IF(AND(YEAR(NovSun1+34)=AnoCalendário,MONTH(NovSun1+34)=11),NovSun1+34,\"\"))","v":"2013-11-30"},{"$f":"IF(DAY(NovSun1)=1,IF(AND(YEAR(NovSun1+28)=AnoCalendário,MONTH(NovSun1+28)=11),NovSun1+28,\"\"),IF(AND(YEAR(NovSun1+35)=AnoCalendário,MONTH(NovSun1+35)=11),NovSun1+35,\"\"))","v":""}]
[]
[null,{"$f":"IF(DAY(NovSun1)=1,IF(AND(YEAR(NovSun1+29)=AnoCalendário,MONTH(NovSun1+29)=11),NovSun1+29,\"\"),IF(AND(YEAR(NovSun1+36)=AnoCalendário,MONTH(NovSun1+36)=11),NovSun1+36,\"\"))","v":""},{"$f":"IF(DAY(NovSun1)=1,IF(AND(YEAR(NovSun1+30)=AnoCalendário,MONTH(NovSun1+30)=11),NovSun1+30,\"\"),IF(AND(YEAR(NovSun1+37)=AnoCalendário,MONTH(NovSun1+37)=11),NovSun1+37,\"\"))","v":""},"OBSERVAÇÕES:"]

{"sheet":"Dez","index":11,"n_rows":15,"n_cols":8,"rows_kept":15,"merged":[[2,1,2,5],[14,3,14,7],[15,3,15,7]]}
[]
[]
[null,{"$f":"UPPER(TEXT(DATE(AnoCalendário,12,1),\"mmmm aaaa\"))","v":"DEZEMBRO 2013"}]
[null,"SEGUNDA-FEIRA","TERÇA-FEIRA","QUARTA-FEIRA","QUINTA-FEIRA","SEXTA-FEIRA","SÁBADO","DOMINGO"]
[null,{"$f":"IF(DAY(DezSun1)=1,\"\",IF(AND(YEAR(DezSun1+1)=AnoCalendário,MONTH(DezSun1+1)=12),DezSun1+1,\"\"))","v":""},{"$f":"IF(DAY(DezSun1)=1,\"\",IF(AND(YEAR(DezSun1+2)=AnoCalendário,MONTH(DezSun1+2)=12),DezSun1+2,\"\"))","v":""},{"$f":"IF(DAY(DezSun1)=1,\"\",IF(AND(YEAR(DezSun1+3)=AnoCalendário,MONTH(DezSun1+3)=12),DezSun1+3,\"\"))","v":""},{"$f":"IF(DAY(DezSun1)=1,\"\",IF(AND(YEAR(DezSun1+4)=AnoCalendário,MONTH(DezSun1+4)=12),DezSun1+4,\"\"))","v":""},{"$f":"IF(DAY(DezSun1)=1,\"\",IF(AND(YEAR(DezSun1+5)=AnoCalendário,MONTH(DezSun1+5)=12),DezSun1+5,\"\"))","v":""},{"$f":"IF(DAY(DezSun1)=1,\"\",IF(AND(YEAR(DezSun1+6)=AnoCalendário,MONTH(DezSun1+6)=12),DezSun1+6,\"\"))","v":""},{"$f":"IF(DAY(DezSun1)=1,IF(AND(YEAR(DezSun1)=AnoCalendário,MONTH(DezSun1)=12),DezSun1,\"\"),IF(AND(YEAR(DezSun1+7)=AnoCalendário,MONTH(DezSun1+7)=12),DezSun1+7,\"\"))","v":"2013-12-01"}]
[]
[null,{"$f":"IF(DAY(DezSun1)=1,IF(AND(YEAR(DezSun1+1)=AnoCalendário,MONTH(DezSun1+1)=12),DezSun1+1,\"\"),IF(AND(YEAR(DezSun1+8)=AnoCalendário,MONTH(DezSun1+8)=12),DezSun1+8,\"\"))","v":"2013-12-02"},{"$f":"IF(DAY(DezSun1)=1,IF(AND(YEAR(DezSun1+2)=AnoCalendário,MONTH(DezSun1+2)=12),DezSun1+2,\"\"),IF(AND(YEAR(DezSun1+9)=AnoCalendário,MONTH(DezSun1+9)=12),DezSun1+9,\"\"))","v":"2013-12-03"},{"$f":"IF(DAY(DezSun1)=1,IF(AND(YEAR(DezSun1+3)=AnoCalendário,MONTH(DezSun1+3)=12),DezSun1+3,\"\"),IF(AND(YEAR(DezSun1+10)=AnoCalendário,MONTH(DezSun1+10)=12),DezSun1+10,\"\"))","v":"2013-12-04"},{"$f":"IF(DAY(DezSun1)=1,IF(AND(YEAR(DezSun1+4)=AnoCalendário,MONTH(DezSun1+4)=12),DezSun1+4,\"\"),IF(AND(YEAR(DezSun1+11)=AnoCalendário,MONTH(DezSun1+11)=12),DezSun1+11,\"\"))","v":"2013-12-05"},{"$f":"IF(DAY(DezSun1)=1,IF(AND(YEAR(DezSun1+5)=AnoCalendário,MONTH(DezSun1+5)=12),DezSun1+5,\"\"),IF(AND(YEAR(DezSun1+12)=AnoCalendário,MONTH(DezSun1+12)=12),DezSun1+12,\"\"))","v":"2013-12-06"},{"$f":"IF(DAY(DezSun1)=1,IF(AND(YEAR(DezSun1+6)=AnoCalendário,MONTH(DezSun1+6)=12),DezSun1+6,\"\"),IF(AND(YEAR(DezSun1+13)=AnoCalendário,MONTH(DezSun1+13)=12),DezSun1+13,\"\"))","v":"2013-12-07"},{"$f":"IF(DAY(DezSun1)=1,IF(AND(YEAR(DezSun1+7)=AnoCalendário,MONTH(DezSun1+7)=12),DezSun1+7,\"\"),IF(AND(YEAR(DezSun1+14)=AnoCalendário,MONTH(DezSun1+14)=12),DezSun1+14,\"\"))","v":"2013-12-08"}]
[]
[null,{"$f":"IF(DAY(DezSun1)=1,IF(AND(YEAR(DezSun1+8)=AnoCalendário,MONTH(DezSun1+8)=12),DezSun1+8,\"\"),IF(AND(YEAR(DezSun1+15)=AnoCalendário,MONTH(DezSun1+15)=12),DezSun1+15,\"\"))","v":"2013-12-09"},{"$f":"IF(DAY(DezSun1)=1,IF(AND(YEAR(DezSun1+9)=AnoCalendário,MONTH(DezSun1+9)=12),DezSun1+9,\"\"),IF(AND(YEAR(DezSun1+16)=AnoCalendário,MONTH(DezSun1+16)=12),DezSun1+16,\"\"))","v":"2013-12-10"},{"$f":"IF(DAY(DezSun1)=1,IF(AND(YEAR(DezSun1+10)=AnoCalendário,MONTH(DezSun1+10)=12),DezSun1+10,\"\"),IF(AND(YEAR(DezSun1+17)=AnoCalendário,MONTH(DezSun1+17)=12),DezSun1+17,\"\"))","v":"2013-12-11"},{"$f":"IF(DAY(DezSun1)=1,IF(AND(YEAR(DezSun1+11)=AnoCalendário,MONTH(DezSun1+11)=12),DezSun1+11,\"\"),IF(AND(YEAR(DezSun1+18)=AnoCalendário,MONTH(DezSun1+18)=12),DezSun1+18,\"\"))","v":"2013-12-12"},{"$f":"IF(DAY(DezSun1)=1,IF(AND(YEAR(DezSun1+12)=AnoCalendário,MONTH(DezSun1+12)=12),DezSun1+12,\"\"),IF(AND(YEAR(DezSun1+19)=AnoCalendário,MONTH(DezSun1+19)=12),DezSun1+19,\"\"))","v":"2013-12-13"},{"$f":"IF(DAY(DezSun1)=1,IF(AND(YEAR(DezSun1+13)=AnoCalendário,MONTH(DezSun1+13)=12),DezSun1+13,\"\"),IF(AND(YEAR(DezSun1+20)=AnoCalendário,MONTH(DezSun1+20)=12),DezSun1+20,\"\"))","v":"2013-12-14"},{"$f":"IF(DAY(DezSun1)=1,IF(AND(YEAR(DezSun1+14)=AnoCalendário,MONTH(DezSun1+14)=12),DezSun1+14,\"\"),IF(AND(YEAR(DezSun1+21)=AnoCalendário,MONTH(DezSun1+21)=12),DezSun1+21,\"\"))","v":"2013-12-15"}]
[]
[null,{"$f":"IF(DAY(DezSun1)=1,IF(AND(YEAR(DezSun1+15)=AnoCalendário,MONTH(DezSun1+15)=12),DezSun1+15,\"\"),IF(AND(YEAR(DezSun1+22)=AnoCalendário,MONTH(DezSun1+22)=12),DezSun1+22,\"\"))","v":"2013-12-16"},{"$f":"IF(DAY(DezSun1)=1,IF(AND(YEAR(DezSun1+16)=AnoCalendário,MONTH(DezSun1+16)=12),DezSun1+16,\"\"),IF(AND(YEAR(DezSun1+23)=AnoCalendário,MONTH(DezSun1+23)=12),DezSun1+23,\"\"))","v":"2013-12-17"},{"$f":"IF(DAY(DezSun1)=1,IF(AND(YEAR(DezSun1+17)=AnoCalendário,MONTH(DezSun1+17)=12),DezSun1+17,\"\"),IF(AND(YEAR(DezSun1+24)=AnoCalendário,MONTH(DezSun1+24)=12),DezSun1+24,\"\"))","v":"2013-12-18"},{"$f":"IF(DAY(DezSun1)=1,IF(AND(YEAR(DezSun1+18)=AnoCalendário,MONTH(DezSun1+18)=12),DezSun1+18,\"\"),IF(AND(YEAR(DezSun1+25)=AnoCalendário,MONTH(DezSun1+25)=12),DezSun1+25,\"\"))","v":"2013-12-19"},{"$f":"IF(DAY(DezSun1)=1,IF(AND(YEAR(DezSun1+19)=AnoCalendário,MONTH(DezSun1+19)=12),DezSun1+19,\"\"),IF(AND(YEAR(DezSun1+26)=AnoCalendário,MONTH(DezSun1+26)=12),DezSun1+26,\"\"))","v":"2013-12-20"},{"$f":"IF(DAY(DezSun1)=1,IF(AND(YEAR(DezSun1+20)=AnoCalendário,MONTH(DezSun1+20)=12),DezSun1+20,\"\"),IF(AND(YEAR(DezSun1+27)=AnoCalendário,MONTH(DezSun1+27)=12),DezSun1+27,\"\"))","v":"2013-12-21"},{"$f":"IF(DAY(DezSun1)=1,IF(AND(YEAR(DezSun1+21)=AnoCalendário,MONTH(DezSun1+21)=12),DezSun1+21,\"\"),IF(AND(YEAR(DezSun1+28)=AnoCalendário,MONTH(DezSun1+28)=12),DezSun1+28,\"\"))","v":"2013-12-22"}]
[]
[null,{"$f":"IF(DAY(DezSun1)=1,IF(AND(YEAR(DezSun1+22)=AnoCalendário,MONTH(DezSun1+22)=12),DezSun1+22,\"\"),IF(AND(YEAR(DezSun1+29)=AnoCalendário,MONTH(DezSun1+29)=12),DezSun1+29,\"\"))","v":"2013-12-23"},{"$f":"IF(DAY(DezSun1)=1,IF(AND(YEAR(DezSun1+23)=AnoCalendário,MONTH(DezSun1+23)=12),DezSun1+23,\"\"),IF(AND(YEAR(DezSun1+30)=AnoCalendário,MONTH(DezSun1+30)=12),DezSun1+30,\"\"))","v":"2013-12-24"},{"$f":"IF(DAY(DezSun1)=1,IF(AND(YEAR(DezSun1+24)=AnoCalendário,MONTH(DezSun1+24)=12),DezSun1+24,\"\"),IF(AND(YEAR(DezSun1+31)=AnoCalendário,MONTH(DezSun1+31)=12),DezSun1+31,\"\"))","v":"2013-12-25"},{"$f":"IF(DAY(DezSun1)=1,IF(AND(YEAR(DezSun1+25)=AnoCalendário,MONTH(DezSun1+25)=12),DezSun1+25,\"\"),IF(AND(YEAR(DezSun1+32)=AnoCalendário,MONTH(DezSun1+32)=12),DezSun1+32,\"\"))","v":"2013-12-26"},{"$f":"IF(DAY(DezSun1)=1,IF(AND(YEAR(DezSun1+26)=AnoCalendário,MONTH(DezSun1+26)=12),DezSun1+26,\"\"),IF(AND(YEAR(DezSun1+33)=AnoCalendário,MONTH(DezSun1+33)=12),DezSun1+33,\"\"))","v":"2013-12-27"},{"$f":"IF(DAY(DezSun1)=1,IF(AND(YEAR(DezSun1+27)=AnoCalendário,MONTH(DezSun1+27)=12),DezSun1+27,\"\"),IF(AND(YEAR(DezSun1+34)=AnoCalendário,MONTH(DezSun1+34)=12),DezSun1+34,\"\"))","v":"2013-12-28"},{"$f":"IF(DAY(DezSun1)=1,IF(AND(YEAR(DezSun1+28)=AnoCalendário,MONTH(DezSun1+28)=12),DezSun1+28,\"\"),IF(AND(YEAR(DezSun1+35)=AnoCalendário,MONTH(DezSun1+35)=12),DezSun1+35,\"\"))","v":"2013-12-29"}]
[]
[null,{"$f":"IF(DAY(DezSun1)=1,IF(AND(YEAR(DezSun1+29)=AnoCalendário,MONTH(DezSun1+29)=12),DezSun1+29,\"\"),IF(AND(YEAR(DezSun1+36)=AnoCalendário,MONTH(DezSun1+36)=12),DezSun1+36,\"\"))","v":"2013-12-30"},{"$f":"IF(DAY(DezSun1)=1,IF(AND(YEAR(DezSun1+30)=AnoCalendário,MONTH(DezSun1+30)=12),DezSun1+30,\"\"),IF(AND(YEAR(DezSun1+37)=AnoCalendário,MONTH(DezSun1+37)=12),DezSun1+37,\"\"))","v":"2013-12-31"},"OBSERVAÇÕES:"]